Workbook

Sheet МЕНЮ сокращ 21 день
A2: День 1 - ый | C2: День 2- ой | E2: День 3 - ий | G2: День 4 - ый | I2: День 5 - ый | K2: День 6 - ой | M2: День 7 - ой
A3: ЗАВТРАК
A4: Бутерброд с маслом | B4: 30/10 | C4: Бутерброд с сыром,с маслом | D4: 30/15/10 | E4: Бутерброд с маслом | F4: 30/10 | G4: Бутерброд с сыром,с маслом | H4: 30/15/10 | I4: Бутерброд с маслом | J4: 30/10 | K4: Бутерброд с маслом | L4: 30/10 | M4: Бутерброд с сыром,с маслом | N4: 30/15/10
A5: Каша пшённая молочная с маслом сливочным | B5: 200/5-150/4 | C5: Каша геркулесовая молочная с маслом сливочным | D5: 200/5-180/5 | E5: Запеканка творожная с молоком сгущенным | F5: 170/30-120/30 | G5: Каша "Дружба" молочная с маслом сливочным | H5: 220/5-180/4 | I5: Омлет натуральный | J5: 200-150 | K5: Каша кукурузная молочная | L5: 180-150 | M5: Сырники творожные с молоком сгущенным | N5: 180/30 -180/20
C6: Яйцо отварное | D6: 40 | E6: Блины с маслом сливочным | F6: 45/5-45/5 | K6: Блины с маслом сливочным | L6: 45/5-45/5
A7: Чай с молоком ,с сахаром | B7: 150/40/10-150/40/10 | C7: Какао с молоком(сахар)10 | D7: 200-200 | E7: Чай с сахаром | F7: 190/10-190/10 | G7: Кофейный напиток с молоком (сахар 10) | H7: 200-200 | I7: Чай с молоком ,с сахаром | J7: 150/40/10-150/40/10 | K7: Какао с молоком (сахар 10) | L7: 200-200 | M7: Чай с сахаром с лимоном | N7: 185/10/5-185/10/5
A8: Фрукты свежие (Яблоки) | B8: 120-120 | E8: Фрукты свежие (Яблоки) | F8: 120-120 | G8: Фрукты свежие (Яблоки) | H8: 120-120 | I8: Фрукты свежие (Яблоки) | J8: 120-120 | K8: Фрукты свежие (Яблоки) | L8: 120-120 | M8: Фрукты свежие (Яблоки) | N8: 120-120
A9: Батон | B9: 30-30 | C9: Батон высший сорт | D9: 30-30 | E9: Батон высший сорт | F9: 30-30 | G9: Батон высший сорт | H9: 30-30 | I9: Батон высший сорт | J9: 30-30 | K9: Батон высший сорт | L9: 30-30 | M9: Батон высший сорт | N9: 30-30
A10: 2-ой ЗАВТРАК
A11: Печенье | B11: 35-30 | C11: Нектар плодовый (разливной) | D11: 180-180 | E11: Крекер | F11: 20-20
A12: Молоко кипяченное | B12: 200-200 | E12: Молоко кипяченное | F12: 200-200 | G12: Катык | H12: 200-200 | I12: Нектар плодовый (разливной) | J12: 180-180 | K12: Ряженка | L12: 200-200 | M12: Молоко кипяченное | N12: 200-200
A13: ОБЕД
A14: Помидоры свежие порционно | B14: 100-60 | C14: Огурцы свежие | D14: 100-60 | E14: Огурцы свежие | F14: 100-60 | G14: Помидоры свежие порционно | H14: 100-60 | I14: Салат из отварной свеклы с маслом растительным | J14: 100-60 | K14: Помидоры свежие порционно | L14: 100-60 | M14: Огурцы соленые (доп гарнир) | N14: 50-30
A15: Щи из свежей капусты с картофелем,со сметаной | B15: 250/10-200/10 | C15: Суп картофельный с крупой на мясном бульоне | D15: 250-200 | E15: Рассольник ленинградский с мясными фрикадельками,со сметаной | F15: 250/11/10-200/11/10 | G15: Суп - лапша домашняя на курином бульоне, с мясом птицы | H15: 250/10-200/10 | I15: Суп картофельный с мясными фрикадельками | J15: 250/11-200/11 | K15: Суп из овощей на курином бульоне, со сметаной | L15: 250/10-200/10 | M15: Суп гороховый с мясными фрикадельками и гренками | N15: 250/11/10-200/11/10
A16: Жаркое по - домашнему с куриной грудкой | B16: 50/200-50/150 | C16: Гуляш из отварной говядины | D16: 50/50-50/50 | E16: Рыба тушеная с овощами | F16: 80/40-80/40 | G16: Овощи тушеные с говяжиьм фаршем | H16: 50/200-50/150 | I16: Биточки рыбные из минтая | J16: 100-90 | K16: Плов из отварных куриных грудок | L16: 250-250 | M16: Котлета из говядины с маслом сливочным | N16: 100/3-90/3
C17: Макаронные изделия отварные | D17: 180-150 | E17: Пюре картофельное с капустой тушеной (доп.гарнир) | F17: 200/30-150/30 | I17: Макаронные изделия отварные с маслом сливочным | J17: 180/5-150/3 | M17: Картофель запеченный дольками | N17: 200-180
A18: Нектар плодовый (разливной) | B18: 180-180 | C18: Компот из сухофруктов (сахар 10) | D18: 200-200 | E18: Напиток из шиповника (сахар10) | F18: 200-200 | G18: Нектар плодовый (разливной) | H18: 180-180 | I18: Компот из свежих яблок (сахар 10) | J18: 200-200 | K18: Нектар плодовый (разливной) | L18: 180-180 | M18: Компот из сухофруктов (сахар 10) | N18: 200-200
A19: Хлеб ржаной | B19: 50-50 | C19: Хлеб ржаной | D19: 50-50 | E19: Хлеб ржаной | F19: 50-50 | G19: Хлеб ржаной | H19: 50-50 | I19: Хлеб ржаной | J19: 50-50 | K19: Хлеб ржаной | L19: 50-50 | M19: Хлеб ржаной | N19: 50-50
A20: Хлеб пшеничный | B20: 50-40 | C20: Хлеб пшеничный | D20: 50-40 | E20: Хлеб пшеничный | F20: 50-40 | G20: Хлеб пшеничный | H20: 50-40 | I20: Хлеб пшеничный | J20: 50-40 | K20: Хлеб пшеничный | L20: 50-40 | M20: Хлеб пшеничный | N20: 50-40
A22: День - 8-ой | C22: День 9- ый | E22: День 10 - ый | G22: День 11 - ый | I22: День 12 - ый | K22: День 13 - ый | M22: День 14 - ый
A23: ЗАВТРАК
A24: Бутерброд с маслом | B24: 30/10 | C24: Бутерброд с сыром,с маслом | D24: 30/15/10 | E24: Бутерброд с маслом | F24: 30/10 | G24: Бутерброд с сыром,с маслом | H24: 30/15/10 | I24: Бутерброд с маслом | J24: 30/10 | K24: Бутерброд с маслом | L24: 30/10 | M24: Бутерброд с сыром,с маслом | N24: 30/15/10
A25: Каша пшеничная молочная с маслом сливочным | B25: 200/5-150/5 | C25: Каша пшенная молочная с маслом сливочным | D25: 200/5-180/5 | E25: Пудинг из творога со сгущённым молоком | F25: 170/30-120/30 | G25: Омлет натуральный | H25: 200-150 | I25: Каша геркулесовая молочная | J25: 180-150 | K25: Каша рисовая молочная с маслом сливочным | L25: 200/5-180/5 | M25: Каша манная молочная с маслом сливочным | N25: 200/5-150/5
A26: Яйцо отварное | B26: 40-40 | C26: Блины с маслом сливочным | D26: 45/5-45/5 | I26: Блины с маслом сливочным | J26: 45/5-45/5 | M26: Яйцо отварное | N26: 40-40
A27: Кофейный напиток с молоком (сахар 10) | B27: 200-200 | C27: Чай с молоком, с сахаром | D27: 150/40/10-150/40/10 | E27: Какао с молоком | F27: 200-200 | G27: Чай с сахаром | H27: 190/10-190/10 | I27: Кофейный напиток с молоком | J27: 200-200 | K27: Чай с молоком, с сахаром | L27: 150/40/10-150/40/10 | M27: Какао с молоком | N27: 200-200
A28: Фрукты свежие (Яблоки) | B28: 120-120 | C28: Фрукты свежие (Яблоки) | D28: 120-120 | E28: Фрукты свежие (Яблоки) | F28: 120-120 | G28: Фрукты свежие (Яблоки) | H28: 120-120 | I28: Фрукты свежие (Яблоки) | J28: 120-120 | K28: Фрукты свежие (Яблоки) | L28: 120-120 | M28: Фрукты свежие (Яблоки) | N28: 120-120
A29: Батон | B29: 30-30 | C29: Батон высший сорт | D29: 30-30 | E29: Батон высший сорт | F29: 30-30 | G29: Батон высший сорт | H29: 30-30 | I29: Батон высший сорт | J29: 30-30 | K29: Батон высший сорт | L29: 30-30 | M29: Батон высший сорт | N29: 30-30
A31: 2-ой ЗАВТРАК
A33: Нектар плодовый (разливной) | B33: 200-200 | C33: Кефир | D33: 200-200 | E33: Молоко кипяченное | F33: 200-200 | G33: Нектар плодовый (разливной) | H33: 200-200 | I33: Катык | J33: 200-200 | K33: Молоко кипяченное | L33: 200-200 | M33: Нектар плодовый (разливной) | N33: 200-200
A34: ОБЕД
A35: Салат из зеленого горошка к/с | B35: 100-60 | C35: Салат из свеклы с маслом растительным | D35: 100-60 | E35: Огурцы свежие порционно | F35: 100-60 | G35: Кукуруза к/с (доп.гарнир) | H35: 100-60 | I35: Огурцы свежие порционно | J35: 100-60 | K35: Помидоры свежие порционно | L35: 100-60 | M35: Салат из свежих овощей | N35: 100-60
A36: Суп крестьянский с пшенной крупой | B36: 250-200 | C36: Борщ из свежей капусты на курином бульоне, с мясом птицы,со сметаной | D36: 250/10/10-200/10/10 | E36: Рассольник ленинградский на мясном бульоне, со сметаной | F36: 250/10-200/10 | G36: Щи из свежей капусты с картофелем, с куриными фрикадельками,со сметаной | H36: 250/11/10-200/11/10 | I36: Суп картофельный с клёцками, с мясными фрикадельками | J36: 250/11-200/11 | K36: Суп картофельный с горохом на курином бульоне, с птицей | L36: 250/10-200/10 | M36: Рассольник Домашний с куриными фрикадельками,со сметаной | N36: 250/11/10-200/11/10
A37: Филе куриной грудки тушеное с овощами | B37: 50/200-50/150 | C37: Биточки рыбные | D37: 100-90 | E37: Бефстроганов из отварной говядины | F37: 50/50-50/50 | G37: Шницель куриный натуральный | H37: 100-90 | I37: Тефтели из говядины (без риса) в томатном соусе | J37: 80/40-80/40 | K37: Рыба запеченная с луком | L37: 100/10-80/10 | M37: Котлеты "Аппетитные" | N37: 100-90
C38: Картофельное пюре | D38: 200-180 | E38: Спагетти отварные с маслом сливочным | F38: 180/5-150/5 | G38: Рис отварной с маслом сливочным | H38: 180/5-150/3 | I38: Каша гречневая рассыпчатая | J38: 180-150 | K38: Картофельное пюре | L38: 200-180 | M38: Макаронные изделия отварные с маслом сливочным | N38: 180/5-150/3
A39: Компот из свежих фруктов (сахар 10) | B39: 200-200 | C39: Нектар плодовый (разливной) | D39: 180-180 | E39: Компот из изюма и яблок (сахар 8) | F39: 200-200 | G39: Напиток из шиповника | H39: 200-200 | I39: Нектар плодовый (разливной) | J39: 180-180 | K39: Компот из сухофруктов (сахар 10) | L39: 200-200 | M39: Компот из изюма (сахар 8) | N39: 200-200
A40: Хлеб ржаной | B40: 50-50 | C40: Хлеб ржаной | D40: 50-50 | E40: Хлеб ржаной | F40: 50-50 | G40: Хлеб ржаной | H40: 50-50 | I40: Хлеб ржаной | J40: 50-50 | K40: Хлеб ржаной | L40: 50-50 | M40: Хлеб ржаной | N40: 50-50
A41: Хлеб пшеничный | B41: 50-40 | C41: Хлеб пшеничный | D41: 50-40 | E41: Хлеб пшеничный | F41: 50-40 | G41: Хлеб пшеничный | H41: 50-40 | I41: Хлеб пшеничный | J41: 50-40 | K41: Хлеб пшеничный | L41: 50-40 | M41: Хлеб пшеничный | N41: 50-40
A43: День - 15-ый | C43: День 16- ый | E43: День 17 - ый | G43: День 18 - ый | I43: День 19 - ый | K43: День 20 - ый | M43: День 21 - ый
G44: ЗАВТРАК
A45: Бутерброд с маслом | B45: 30/10 | C45: Бутерброд с маслом | D45: 30/10 | E45: Бутерброд с сыром,с маслом | F45: 30/15/10 | G45: Бутерброд с маслом | H45: 30/10 | I45: Бутерброд с маслом | J45: 30/10 | K45: Бутерброд с маслом | L45: 30/10 | M45: Бутерброд с сыром,с маслом | N45: 30/15/10
A46: Сырники творожные с молоком сгущенным | B46: 180/30 -180/20 | C46: Каша кукурузная молочная | D46: 200-150 | E46: Омлет натуральный | F46: 200-150 | G46: Каша "Дружба" молочная | H46: 220/5-180/4 | I46: Пудинг из творога со сгущённым молоком | J46: 170/30-120/30 | K46: Каша пшеничная молочная с маслом сливочным | L46: 200/5-150/4 | M46: Каша рисовая молочная с маслом сливочным | N46: 200/5-180/5
C47: Блины с маслом сливочным | D47: 45/5-45/5 | I47: Блины с маслом сливочным | J47: 45/5-45/5 | K47: Яйцо отварное | L47: 40-40
A48: Чай с сахаром | B48: 190/10-190/10 | C48: Кофейный напиток с молоком | D48: 200-200 | E48: Чай с молоком ,с сахаром | F48: 150/40/10-150/40/10 | G48: Какао с молоком | H48: 200-200 | I48: Чай с сахаром | J48: 190/10-190/10 | K48: Кофейный напиток с молоком | L48: 200-200 | M48: Чай с сахаром с лимоном | N48: 185/10/5-185/10/5
A49: Фрукты свежие (Яблоки) | B49: 120-120 | C49: Фрукты свежие (Яблоки) | D49: 120-120 | E49: Фрукты свежие (Яблоки) | F49: 120-120 | G49: Фрукты свежие (Яблоки) | H49: 120-120 | I49: Фрукты свежие (Яблоки) | J49: 120-120 | K49: Фрукты свежие (Яблоки) | L49: 120-120 | M49: Фрукты свежие (Яблоки) | N49: 120-120
A50: Батон | B50: 30-30 | C50: Батон высший сорт | D50: 30-30 | E50: Батон высший сорт | F50: 30-30 | G50: Батон высший сорт | H50: 30-30 | I50: Батон высший сорт | J50: 30-30 | K50: Батон высший сорт | L50: 30-30 | M50: Батон высший сорт | N50: 30-30
A51: 2-ой ЗАВТРАК
A52: Печенье | B52: 35-30 | G52: Вафли | H52: 20-20 | I52: Крекер | J52: 20-20
A53: Ряженка | B53: 200-200 | C53: Молоко кипяченное | D53: 200-200 | E53: Нектар плодовый (разливной) | F53: 180-180 | G53: Кефир | H53: 180-180 | I53: Молоко кипяченное | J53: 200-200 | K53: Нектар плодовый (разливной) | L53: 180-180 | M53: Катык | N53: 200-200
A54: ОБЕД
A55: Огурцы свежие порционно | B55: 100-60 | C55: Салат из отварной свеклы с зел горошком | D55: 100-60 | E55: Салат из фасоли с кукурузой и солеными огурцами | F55: 100-60 | G55: Помидоры свежие порционно | H55: 100-60 | I55: Огурцы свежие порционно | J55: 100-60 | K55: Огурцы соленые (доп.гарнир) | L55: 50-30 | M55: Салат из свежих овощей | N55: 100-60
A56: Суп-лапша домашняя с картофелем на курином бульоне | B56: 250-200 | C56: Щи из свежей капусты, с картофелем,с мясными фрикадельками ,со сметаной | D56: 250/11/10-200/11/10 | E56: Суп картофельный с на курином бульоне с мясом птицы | F56: 250/10-200/10 | G56: Суп гороховый на мясном бульоне,с гренками | H56: 250/10-200/10 | I56: Борщ с капустой, с картофелем с куриными фрикадельками,со сметаной | J56: 250/11/10-200/11/10 | K56: Суп крестьянский с пшенной крупой с мясными фрикадельками | L56: 250/11-200/11 | M56: Суп картофельный с фасолью на мясном бульоне | N56: 250-200
A57: Фрикассе из отварных куриных грудок | B57: 50/50-50/50 | C57: Биточки рыбные из минтая с маслом сливочным | D57: 100/5-90/5 | E57: Куриная грудка запеченная с овощами и сыром | F57: 120-120 | G57: Плов из отварной говядины | H57: 50/200-50/150 | I57: Шницель куриный натуральный | J57: 100-90 | K57: Запеканка картофельная с мясом | L57: 250-200 | M57: Гуляш из отварной говядины | N57: 50/50-50/50
A58: Рис отварной | B58: 180-150 | C58: Пюре картофельное | D58: 180-150 | E58: Овощное рагу | F58: 200-180 | I58: Каша гречневая рассыпчатая | J58: 180-150 | M58: Макароны отварные с маслом сливочным | N58: 180/3-150/3
A59: Нектар плодовый (разливной) | B59: 180-180 | C59: Компот из свежих яблок (сахар 10) | D59: 200-200 | E59: Компот из сухофруктов (сахар 10) | F59: 200-200 | G59: Компот из изюма и яблок (сахар 8) | H59: 200-200 | I59: Нектар плодовый (разливной) | J59: 180-180 | K59: Компот из свежих фруктов (сахар 10) | L59: 200-200 | M59: Компот из изюма (сахар 8) | N59: 200-200
A60: Хлеб ржаной | B60: 50-50 | C60: Хлеб ржаной | D60: 50-50 | E60: Хлеб ржаной | F60: 50-50 | G60: Хлеб ржаной | H60: 50-50 | I60: Хлеб ржаной | J60: 50-50 | K60: Хлеб ржаной | L60: 50-50 | M60: Хлеб ржаной | N60: 50-50
A61: Хлеб пшеничный | B61: 50-40 | C61: Хлеб пшеничный | D61: 50-40 | E61: Хлеб пшеничный | F61: 50-40 | G61: Хлеб пшеничный | H61: 50-40 | I61: Хлеб пшеничный | J61: 50-40 | K61: Хлеб пшеничный | L61: 50-40 | M61: Хлеб пшеничный | N61: 50-40

Sheet младшие 21д
A2: День 1 - ый
A3: Наименование блюд и | C3: Масса | D3: Пищевые вещества | G3: Энергетическая | H3: В1,мг | I3: С,мг | J3: A,мкг | K3: Е,мг | L3: Ca | M3: P | N3: Mg | O3: Fe | P3: Сборник
A4: продуктов | C4: порции | G4: ценность | P4: рецептур
D5: белки | E5: жиры | F5: угл-ды | G5: Ккал
B6: ЗАВТРАК
A7: Бутерброд с маслом | C7: 30/10 | D7: 2.33 | E7: 8.12 | F7: 15.55 | G7: 144.60 | H7: 0.03 | I7: 0.00 | J7: 40.00 | K7: 0.62 | L7: 8.10 | M7: 22.50 | N7: 3.90 | O7: 0.38 | P7: №1 сб 2017 шк
A8: Каша пшённая молочная с маслом сливочным | C8: 150/4 | D8: 5.60 | E8: 6.25 | F8: 17.74 | G8: 145.05 | H8: 0.14 | I8: 0.88 | J8: 29.50 | K8: 0.12 | L8: 102.74 | M8: 137.23 | N8: 35.70 | O8: 0.92 | P8: №173 СБ шк 2017
A9: Чай с молоком, с сахаром | C9: 150/40/10 | D9: 1.46 | E9: 1.08 | F9: 11.96 | G9: 63.70 | H9: 0.02 | I9: 0.67 | J9: 8.00 | K9: 0.00 | L9: 63.02 | M9: 48.36 | N9: 12.20 | O9: 1.30 | P9: №378 СБ шк 2017
A10: Фрукты свежие (Яблоки) | C10: 120 | D10: 0.48 | E10: 0.48 | F10: 11.76 | G10: 56.40 | H10: 0.04 | I10: 12.00 | J10: 0.00 | K10: 0.24 | L10: 19.20 | M10: 13.20 | N10: 10.80 | O10: 2.64 | P10: №338 сб 2017 шк
A11: Батон | C11: 30 | D11: 2.25 | E11: 0.87 | F11: 15.42 | G11: 78.60 | H11: 0.03 | I11: 0.00 | J11: 0.00 | K11: 0.51 | L11: 5.70 | M11: 19.50 | N11: 3.90 | O11: 0.36 | P11: стр 134 табл. 6 Дели Плюс 2012г,
A12: Итого: | C12: 544 | D12: =SUM(D7:D11) -> 12.12 | E12: =SUM(E7:E11) -> 16.80 | F12: 72.43 | G12: =SUM(G7:G11) -> 488.35 | H12: =SUM(H7:H11) -> 0.26 | I12: 13.55 | J12: 77.50 | K12: 1.49 | L12: 198.75 | M12: 240.79 | N12: 66.50 | O12: 5.60
B13: 2 - ой ЗАВТРАК
A14: Печенье | C14: 30 | D14: 2.59 | E14: 2.49 | F14: 13.18 | G14: 92.45 | H14: 0.05 | K14: 1.30 | L14: 9.10 | M14: 29.40 | N14: 10.50 | O14: 0.49 | P14: стр 136 табл. 6 Дели Плюс 2012г,
A15: Молоко кипяченное | C15: 200 | D15: 5.80 | E15: 5.00 | F15: 9.60 | G15: 107.00 | H15: 0.08 | I15: 2.60 | J15: 40.00 | L15: 240.00 | M15: 180.00 | N15: 28.00 | O15: 0.20 | P15: №385 СБ шк 2017
A16: Итого: | C16: 230 | D16: =SUM(D14:D15) -> 8.39 | E16: =SUM(E14:E15) -> 7.49 | F16: 22.78 | G16: =SUM(G14:G15) -> 199.45 | H16: 0.13 | I16: 2.60 | J16: 40.00 | K16: 1.30 | L16: 249.10 | M16: 209.40 | N16: 38.50 | O16: 0.69
A17: Итого за завтрак: | C17: =C12+C16 -> 774 | D17: =D12+D16 -> 20.51 | E17: =E12+E16 -> 24.29 | F17: 95.21 | G17: =G12+G16 -> 687.80 | H17: 0.39 | I17: 16.15 | J17: 117.50 | K17: 2.78 | L17: 447.85 | M17: 450.19 | N17: 105.00 | O17: 6.29 | Q17: =G17/2350 -> 29.27% | R17: 30% (28,5-31,5)
B18: ОБЕД
A19: Помидоры свежие порционно | C19: 60 | D19: 0.66 | E19: 0.12 | F19: 2.28 | G19: 14.40 | H19: 0.04 | I19: 15.00 | J19: 0.00 | K19: 0.42 | L19: 8.40 | M19: 15.60 | N19: 12.00 | O19: 0.54 | P19: №71 сб шк 2017
A20: Щи из свежей капусты с картофелем,со сметаной | C20: 200/10 | D20: 3.47 | E20: 5.46 | F20: 21.68 | G20: 88.00 | H20: 0.05 | I20: 12.66 | J20: 10.00 | K20: 1.91 | L20: 48.20 | M20: 45.30 | N20: 18.60 | O20: 0.68 | P20: №88,105 сб 2017шк
A21: Жаркое по - домашнему с куриной грудкой | C21: 50/150 | D21: 14.33 | E21: 28.73 | F21: 29.77 | G21: 396.00 | H21: 0.11 | I21: 8.99 | J21: 29.10 | K21: 3.88 | L21: 55.70 | M21: 191.40 | N21: 43.32 | O21: 4.17 | P21: ТТК
A22: Нектар плодовый (разливной) | C22: 180 | D22: 0.90 | E22: 0.00 | F22: 18.18 | G22: 76 | H22: 0.0198 | I22: 3.6 | J22: 0 | K22: 0.18 | L22: 12.6 | M22: 12.6 | N22: 7.2 | O22: 2.52 | P22: №389 сб 2017 шк
A23: Хлеб ржаной | C23: 50 | D23: 3.3 | E23: 0.6 | F23: 19.8 | G23: 99 | H23: 0.085 | I23: 0 | J23: 0 | K23: 0.7 | L23: 14.5 | M23: 75 | N23: 23.5 | O23: 1.95 | P23: стр 144 табл. 6 Дели Плюс 2012г,
A24: Хлеб пшеничный | C24: 40 | D24: 3.04 | E24: 0.32 | F24: 19.68 | G24: 94.00 | H24: 0.044 | I24: 0 | J24: 0 | K24: 0.44 | L24: 8 | M24: 26 | N24: 5.6 | O24: 0.44 | P24: стр 134 табл. 6 Дели Плюс 2012г,
A25: Итого: | C25: 740.00 | D25: =SUM(D19:D24) -> 25.70 | E25: =SUM(E19:E24) -> 35.23 | F25: 111.39 | G25: 787.72 | H25: 0.35 | I25: 40.25 | J25: 39.10 | K25: 7.53 | L25: 147.40 | M25: 365.90 | N25: 110.22 | O25: 10.30 | Q25: =G25/2350 -> 33.52% | R25: 40% (38-42)
A26: ВСЕГО: | C26: =C12+C16+C25 -> 1514.00 | D26: =D12+D16+D25 -> 46.22 | E26: 59.52 | F26: 206.60 | G26: 1475.52 | H26: 0.74 | I26: 56.40 | J26: 156.60 | K26: 10.31 | L26: 595.25 | M26: 816.09 | N26: 215.22 | O26: 16.59 | Q26: =G26/2350 -> 62.79% | R26: 70% (66,5-73,5%)
A28: День 2- ой
A29: Наименование блюд и | C29: Масса | D29: Пищевые вещества | G29: Энергетическая | H29: В1,мг | I29: С,мг | J29: A,мкг | K29: Е,мг | L29: Ca | M29: P | N29: Mg | O29: Fe | P29: Сборник
A30: продуктов | C30: порции | G30: ценность | P30: рецептур
D31: белки | E31: жиры | F31: угл-ды | G31: Ккал
B32: ЗАВТРАК
A33: Бутерброд с сыром,с маслом | C33: 30/15/10 | D33: 6.28 | E33: 12.11 | F33: 15.55 | G33: 196.10 | H33: 0.04 | I33: 0.11 | J33: 71.50 | K33: 0.68 | L33: 158.10 | M33: 112.50 | N33: 12.15 | O33: 0.49 | P33: №3 сб 2017 шк
A34: Каша геркулесовая молочная с маслом сливочным | C34: 180/5 | D34: 4.05 | E34: 5.91 | F34: 33.82 | G34: 186.73 | H34: 0.16 | I34: 0.86 | J34: 33.32 | K34: 0.51 | L34: 133.70 | M34: 210.28 | N34: 63.74 | O34: 1.55 | P34: №173 сб шк 2017
A35: Яйцо отварное | C35: 40 | D35: 5.08 | E35: 1.60 | F35: 0.28 | G35: 62.80 | H35: 0.03 | J35: 100.00 | K35: 0.24 | L35: 22.00 | M35: 76.80 | N35: 4.80 | O35: 1.00 | P35: №209 сб шк2017
A36: Какао с молоком | C36: 200 | D36: 4.08 | E36: 3.81 | F36: 7.60 | G36: 78.60 | H36: 0.06 | I36: 1.59 | J36: 24.40 | K36: 0.00 | L36: 151.92 | M36: 124.56 | N36: 21.34 | O36: 0.45 | P36: №382 сб шк 2017
A37: Батон высший сорт | C37: 30 | D37: 2.25 | E37: 0.87 | F37: 15.42 | G37: 78.60 | H37: 0.03 | I37: 0.00 | J37: 0.00 | K37: 0.51 | L37: 5.70 | M37: 19.50 | N37: 3.90 | O37: 0.36 | P37: стр 134 табл. 6 Дели Плюс 2012г,
A38: Итого: | C38: 510 | D38: =SUM(D33:D37) -> 21.73 | E38: =SUM(E33:E37) -> 24.30 | F38: 72.67 | G38: =SUM(G33:G37) -> 602.83 | H38: 0.32 | I38: 2.56 | J38: 229.22 | K38: 1.94 | L38: 471.42 | M38: 543.64 | N38: 105.93 | O38: 3.85
B39: 2 - ой ЗАВТРАК
A40: Нектар плодовый (разливной) | C40: 180 | D40: 0.90 | E40: 0.00 | F40: 18.18 | G40: 76 | H40: 0.0198 | I40: 3.6 | J40: 0 | K40: 0.18 | L40: 12.6 | M40: 12.6 | N40: 7.2 | O40: 2.52 | P40: №389 сб 2017 шк
A41: Итого: | C41: 180 | D41: =SUM(D40) -> 0.90 | E41: =SUM(E40) -> 0.00 | F41: 18.18 | G41: 76.32 | H41: 0.0198 | I41: 3.6 | J41: 0 | K41: 0.18 | L41: 12.6 | M41: 12.6 | N41: 7.2 | O41: 2.52
A42: Итого за завтрак: | C42: =C38+C41 -> 690.00 | D42: =D38+D41 -> 22.63 | E42: =E38+E41 -> 24.30 | F42: =F38+F41 -> 90.85 | G42: =G38+G41 -> 679.15 | H42: =H38+H41 -> 0.34 | I42: 6.16 | J42: 229.22 | K42: 2.12 | L42: 484.02 | M42: 556.24 | N42: 113.13 | O42: 6.37 | Q42: =G42/2350 -> 28.90% | R42: 30% (28,5-31,5)
B43: ОБЕД
A44: Огурцы свежие | C44: 60 | D44: 0.48 | E44: 0.06 | F44: 1.50 | G44: 8.40 | H44: 0.02 | I44: 6.00 | K44: 0.06 | L44: 13.80 | M44: 25.20 | N44: 8.40 | O44: 0.36 | P44: №71 сб шк 2017
A45: Суп картофельный с крупой на мясном бульоне | C45: 200 | D45: 1.58 | E45: 2.47 | F45: 11.69 | G45: 68.60 | H45: 0.07 | I45: 6.60 | J45: 0.00 | K45: 0.98 | L45: 21.36 | M45: 44.78 | N45: 18.22 | O45: 0.70 | P45: №101 сб шк 2017
A46: Гуляш из отварной говядины | C46: 50/50 | D46: 14.50 | E46: 22.19 | F46: 4.89 | G46: 271.00 | H46: 0.03 | I46: 0.92 | K46: 2.61 | L46: 21.81 | M46: 154.15 | N46: 22.03 | O46: 3.06 | P46: №260 сб шк 2017
A47: Макаронные изделия отварные | C47: 150 | D47: 5.66 | E47: 0.67 | F47: 31.92 | G47: 156.30 | H47: 0.06 | K47: 0.77 | L47: 11.19 | M47: 37.17 | N47: 8.62 | O47: 0.85 | P47: №203 сб шк 2017
A48: Компот из сухофруктов | C48: 200 | D48: 0.66 | E48: 0.09 | F48: 22.03 | G48: 92.80 | H48: 0.02 | I48: 0.73 | J48: 0.00 | K48: 0.51 | L48: 32.18 | M48: 23.44 | N48: 17.46 | O48: 0.67 | P48: №349 сб шк 2017
A49: Хлеб ржаной | C49: 50 | D49: 3.30 | E49: 0.60 | F49: 19.80 | G49: 99.00 | H49: 0.09 | I49: 0.00 | J49: 0.00 | K49: 0.70 | L49: 14.50 | M49: 75.00 | N49: 23.50 | O49: 1.95 | P49: стр 144 табл. 6 Дели Плюс 2012г,
A50: Хлеб пшеничный | C50: 40 | D50: 3.04 | E50: 0.32 | F50: 19.68 | G50: 94.00 | H50: 0.044 | I50: 0 | J50: 0 | K50: 0.44 | L50: 8 | M50: 26 | N50: 5.6 | O50: 0.44 | P50: стр 134 табл. 6 Дели Плюс 2012г,
A51: Итого: | C51: 800 | D51: =SUM(D44:D50) -> 29.22 | E51: =SUM(E44:E50) -> 26.40 | F51: 111.51 | G51: =SUM(G44:G50) -> 790.10 | H51: 0.32 | I51: 14.25 | J51: 0.00 | K51: 6.07 | L51: 122.84 | M51: 385.74 | N51: 103.83 | O51: 8.03 | Q51: =G51/2350 -> 33.62% | R51: 40% (38-42)
A52: ВСЕГО: | C52: =C38+C41+C51 -> 1490.00 | D52: =D38+D41+D51 -> 51.85 | E52: 50.70 | F52: 202.36 | G52: 1469.25 | H52: 0.66 | I52: 20.40 | J52: 229.22 | K52: 8.19 | L52: 606.86 | M52: 941.98 | N52: 216.96 | O52: 14.40 | Q52: =G52/2350 -> 62.52% | R52: 70% (66,5-73,5%)
A54: День 3 - ий
A55: Наименование блюд и | C55: Масса | D55: Пищевые вещества | G55: Энергетическая | H55: В1,мг | I55: С,мг | J55: A,мкг | K55: Е,мг | L55: Ca | M55: P | N55: Mg | O55: Fe | P55: Сборник
A56: продуктов | C56: порции | G56: ценность | P56: рецептур
D57: белки | E57: жиры | F57: угл-ды | G57: Ккал
B58: ЗАВТРАК
A59: Бутерброд с маслом | C59: 30/10 | D59: 2.33 | E59: 8.12 | F59: 15.55 | G59: 144.60 | H59: 0.03 | I59: 0.00 | J59: 40.00 | K59: 0.62 | L59: 8.10 | M59: 22.50 | N59: 3.90 | O59: 0.38 | P59: №1 сб 2017 шк
A60: Запеканка творожная с молоком сгущенным | C60: 120/30 | D60: 5.30 | E60: 5.54 | F60: 10.50 | G60: 186.80 | H60: 0.09 | I60: 0.61 | J60: 109.20 | K60: 0.70 | L60: 271.52 | M60: 320.24 | N60: 38.50 | O60: 1.04 | P60: №223 СБ 2017 шк
A61: Блины с маслом сливочным | C61: 45/5 | D61: 2.43 | E61: 0.95 | F61: 11.60 | G61: 99.14 | H61: 0.05 | I61: 0.00 | J61: 29.14 | K61: 0.73 | L61: 11.01 | M61: 29.90 | N61: 8.59 | O61: 0.50 | P61: ТТК №656 от 28.04.2020
A62: Чай с сахаром | C62: 190/10 | D62: 0.38 | E62: 0.10 | F62: 10.06 | G62: 42.66 | H62: 0.0019 | I62: 0.19 | J62: 0 | K62: 0 | L62: 18.939 | M62: 15.656 | N62: 8.36 | O62: 1.588 | P62: №376 сб 2017 шк
A63: Фрукты свежие (Яблоки) | C63: 120 | D63: 0.48 | E63: 0.48 | F63: 11.76 | G63: 56.40 | H63: 0.04 | I63: 12.00 | J63: 0.00 | K63: 0.24 | L63: 19.20 | M63: 13.20 | N63: 10.80 | O63: 2.64 | P63: №338 сб 2017 шк
A64: Батон высший сорт | C64: 30 | D64: 2.25 | E64: 0.87 | F64: 15.42 | G64: 78.60 | H64: 0.03 | I64: 0.00 | J64: 0.00 | K64: 0.51 | L64: 5.70 | M64: 19.50 | N64: 3.90 | O64: 0.36 | P64: стр 134 табл. 6 Дели Плюс 2012г,
A65: Итого: | C65: 590 | D65: =SUM(D59:D64) -> 13.17 | E65: =SUM(E59:E64) -> 16.06 | F65: 74.89 | G65: 608.20 | H65: =SUM(H59:H64) -> 0.24 | I65: 12.80 | J65: 178.34 | K65: 2.79 | L65: 334.47 | M65: 421.00 | N65: 74.04 | O65: 6.51
B66: 2 - ой ЗАВТРАК
A67: Крекер | C67: 20 | D67: 1.84 | E67: 2.82 | F67: 12.64 | G67: 83.20 | H67: 0.03 | I67: 0.00 | K67: 1.30 | L67: 5.20 | M67: 21.40 | N67: 5.00 | O67: 0.28
A68: Молоко кипяченное | C68: 200 | D68: 5.80 | E68: 5.00 | F68: 9.60 | G68: 107.00 | H68: 0.08 | I68: 2.60 | J68: 40.00 | L68: 240.00 | M68: 180.00 | N68: 28.00 | O68: 0.20 | P68: №385 СБ шк 2017
A69: Итого: | C69: 220 | D69: =SUM(D67:D68) -> 7.64 | E69: =SUM(E67:E68) -> 7.82 | F69: 22.24 | G69: 190.20 | H69: 0.11 | I69: 2.60 | J69: 40.00 | K69: 1.30 | L69: 245.20 | M69: 201.40 | N69: 33.00 | O69: 0.48
A70: Итого за завтрак: | C70: =C65+C69 -> 810 | D70: =D65+D69 -> 20.81 | E70: =E65+E69 -> 23.88 | F70: 97.13 | G70: =G65+G69 -> 798.40 | H70: 0.35 | I70: 15.40 | J70: 218.34 | K70: 4.09 | L70: 579.67 | M70: 622.40 | N70: 107.04 | O70: 6.99 | Q70: =G70/2350 -> 33.97% | R70: 30% (28,5-31,5)
B71: ОБЕД
A72: Огурцы свежие | C72: 60 | D72: 0.48 | E72: 0.06 | F72: 1.50 | G72: 8.40 | H72: 0.02 | I72: 6.00 | K72: 0.06 | L72: 13.80 | M72: 25.20 | N72: 8.40 | O72: 0.36 | P72: №71 сб шк 2017
A73: Рассольник ленинградский с мясными фрикадельками,со сметаной | C73: 200/11/10 | D73: 4.07 | E73: 6.86 | F73: 10.03 | G73: 123.57 | H73: 0.08 | I73: 6.80 | J73: 12.20 | K73: 1.98 | L73: 34.49 | M73: 74.32 | N73: 23.78 | O73: 0.93 | P73: №96 сб 2017 шк
A74: Рыба тушеная с овощами | C74: 80/40 | D74: 10.43 | E74: 11.62 | F74: 9.04 | G74: 180.33 | H74: 0.04 | I74: 3.05 | J74: 25.66 | K74: 2.06 | L74: 131.26 | M74: 189.75 | N74: 44.32 | O74: 0.75 | P74: №229 сб 2017 шк
A75: Пюре картофельное с капустой тушеной (доп.гарнир) | C75: 150/30 | D75: 3.68 | E75: 5.91 | F75: 32.81 | G75: 213.35 | H75: 0.15 | I75: 23.28 | J75: 0.00 | K75: 0.77 | L75: 54.60 | M75: 98.80 | N75: 34.01 | O75: 1.26 | P75: №312, 139 шк 2017 сб
A76: Напиток из шиповника | C76: 200 | D76: 0.68 | E76: 0.28 | F76: 20.76 | G76: 88.20 | H76: 0.01 | I76: 100.00 | J76: 0.00 | K76: 0.76 | L76: 21.34 | M76: 3.44 | N76: 3.44 | O76: 0.63 | P76: №388 шк 2017 сб
A77: Хлеб ржаной | C77: 50 | D77: 3.30 | E77: 0.60 | F77: 19.80 | G77: 99.00 | H77: 0.09 | I77: 0.00 | J77: 0.00 | K77: 0.70 | L77: 14.50 | M77: 75.00 | N77: 23.50 | O77: 1.95 | P77: стр 144 табл. 6 Дели Плюс 2012г,
A78: Хлеб пшеничный | C78: 40 | D78: 3.04 | E78: 0.32 | F78: 19.68 | G78: 94.00 | H78: 0.044 | I78: 0 | J78: 0 | K78: 0.44 | L78: 8 | M78: 26 | N78: 5.6 | O78: 0.44 | P78: стр 134 табл. 6 Дели Плюс 2012г,
A79: Итого: | C79: 871 | D79: =SUM(D72:D78) -> 25.67 | E79: 26.65 | F79: =SUM(F72:F78) -> 113.62 | G79: =SUM(G72:G78) -> 806.85 | H79: 0.44 | I79: 139.13 | J79: 37.86 | K79: 6.76 | L79: 277.98 | M79: 492.52 | N79: 143.05 | O79: 6.32 | Q79: =G79/2350 -> 34.33% | R79: 40% (38-42)
A80: ВСЕГО: | C80: =C65+C69+C79 -> 1681.00 | D80: =D65+D69+D79 -> 46.48 | E80: 50.53 | F80: 210.74 | G80: 1605.25 | H80: 0.79 | I80: 154.54 | J80: 256.19 | K80: 10.85 | L80: 857.66 | M80: 1114.92 | N80: 250.10 | O80: 13.32 | Q80: =G80/2350 -> 68.31% | R80: 70% (66,5-73,5%)
A82: День 4 - ый
A83: Наименование блюд и | C83: Масса | D83: Пищевые вещества | G83: Энергетическая | H83: В1,мг | I83: С,мг | J83: A,мкг | K83: Е,мг | L83: Ca | M83: P | N83: Mg | O83: Fe | P83: Сборник
A84: продуктов | C84: порции | G84: ценность | P84: рецептур
D85: белки | E85: жиры | F85: угл-ды | G85: Ккал
B86: ЗАВТРАК
A87: Бутерброд с сыром,с маслом | C87: 30/15/10 | D87: 6.28 | E87: 12.11 | F87: 15.55 | G87: 196.10 | H87: 0.04 | I87: 0.11 | J87: 71.50 | K87: 0.68 | L87: 158.10 | M87: 112.50 | N87: 12.15 | O87: 0.49 | P87: №3 сб 2017 шк
A88: Каша "Дружба" молочная с маслом сливочным | C88: 180/4 | D88: 4.43 | E88: 2.54 | F88: 28.07 | G88: 188.20 | H88: 0.09 | I88: 0.86 | J88: 29.32 | K88: 0.11 | L88: 118.84 | M88: 139.55 | N88: 33.50 | O88: 0.72 | P88: ТТК №7Д
A89: Кофейный напиток с молоком | C89: 200 | D89: 3.17 | E89: 2.68 | F89: 5.97 | G89: 60.60 | H89: 0.04 | I89: 1.30 | J89: 20.00 | K89: 0.00 | L89: 125.48 | M89: 90.00 | N89: 14.00 | O89: 0.10 | P89: №379 шк 2017 сб
A90: Фрукты свежие (Яблоки) | C90: 120 | D90: 0.48 | E90: 0.48 | F90: 11.76 | G90: 56.40 | H90: 0.036 | I90: 12 | J90: 0 | K90: 0.24 | L90: 19.2 | M90: 13.2 | N90: 10.8 | O90: 2.64 | P90: №338 сб 2017 шк
A91: Батон высший сорт | C91: 30 | D91: 2.25 | E91: 0.87 | F91: 15.42 | G91: 78.60 | H91: 0.03 | I91: 0.00 | J91: 0.00 | K91: 0.51 | L91: 5.70 | M91: 19.50 | N91: 3.90 | O91: 0.36 | P91: стр 134 табл. 6 Дели Плюс 2012г,
A92: Итого: | C92: 589 | D92: =SUM(D87:D91) -> 16.60 | E92: =SUM(E87:E91) -> 18.68 | F92: =SUM(F87:F91) -> 76.77 | G92: =SUM(G87:G91) -> 579.90 | H92: =SUM(H87:H91) -> 0.24 | I92: 14.27 | J92: 120.82 | K92: 1.54 | L92: 427.32 | M92: 374.75 | N92: 74.35 | O92: 4.31
B93: 2 - ой ЗАВТРАК
A94: Катык | C94: 200 | D94: 5.80 | E94: 5.00 | F94: 9.60 | G94: 107.00 | H94: 0.04 | I94: 0.06 | J94: 36.00 | K94: 0.00 | L94: 223.20 | M94: 165.60 | N94: 25.20 | O94: 0.18 | P94: №386 шк 2017 сб
A95: Итого: | C95: 200 | D95: =D94 -> 5.8 | E95: 5 | F95: 9.6 | G95: 107 | H95: 0.036 | I95: 0.063 | J95: 36 | K95: 0 | L95: 223.2 | M95: 165.6 | N95: 25.2 | O95: 0.18
A96: Итого за завтрак: | C96: =C92+C95 -> 789.00 | D96: =D92+D95 -> 22.40 | E96: 23.68 | F96: 86.37 | G96: =G92+G95 -> 686.90 | H96: 0.28 | I96: 14.33 | J96: 156.82 | K96: 1.54 | L96: 650.52 | M96: 540.35 | N96: 99.55 | O96: 4.49 | Q96: =G96/2350 -> 29.23% | R96: 30% (28,5-31,5)
B97: ОБЕД
A98: Помидоры свежие порционно | C98: 60 | D98: 0.66 | E98: 0.12 | F98: 2.28 | G98: 14.40 | H98: 0.04 | I98: 15.00 | J98: 0.00 | K98: 0.42 | L98: 8.40 | M98: 15.60 | N98: 12.00 | O98: 0.54 | P98: №71 сб шк 2017
A99: Суп - лапша домашняя на курином бульоне, с мясом птицы | C99: 200/10 | D99: 4.39 | E99: 6.29 | F99: 9.33 | G99: 118.80 | H99: 0.04 | I99: 0.64 | J99: 15.82 | K99: 2.15 | L99: 28.20 | M99: 47.20 | N99: 10.57 | O99: 0.71 | P99: №113,105 шк 2017 сб
A100: Овощи тушеные с говяжьим фаршем | C100: 50/150 | D100: 12.01 | E100: 17.53 | F100: 35.88 | G100: 321.45 | H100: 0.02 | I100: 14.26 | J100: 31.25 | K100: 0.09 | L100: 54.33 | M100: 156.42 | N100: 33.10 | O100: 1.87 | P100: №143, 241 шк 2017 сб
A101: Нектар плодовый (разливной) | C101: 180 | D101: 0.90 | E101: 0.00 | F101: 18.18 | G101: 76 | H101: 0.0198 | I101: 3.6 | J101: 0 | K101: 0.18 | L101: 12.6 | M101: 12.6 | N101: 7.2 | O101: 2.52 | P101: №389 сб 2017 шк
A102: Хлеб ржаной | C102: 50 | D102: 3.30 | E102: 0.60 | F102: 19.80 | G102: 99.00 | H102: 0.09 | I102: 0.00 | J102: 0.00 | K102: 0.70 | L102: 14.50 | M102: 75.00 | N102: 23.50 | O102: 1.95 | P102: стр 144 табл. 6 Дели Плюс 2012г,
A103: Хлеб пшеничный | C103: 40 | D103: 3.04 | E103: 0.32 | F103: 19.68 | G103: 94.00 | H103: 0.044 | I103: 0 | J103: 0 | K103: 0.44 | L103: 8 | M103: 26 | N103: 5.6 | O103: 0.44 | P103: стр 134 табл. 6 Дели Плюс 2012г,
A104: Итого: | C104: 740 | D104: 26.30 | E104: 26.86 | F104: 115.15 | G104: 783.97 | H104: =SUM(H98:H103) -> 0.25 | I104: 33.50 | J104: 47.07 | K104: 3.98 | L104: 126.03 | M104: 332.82 | N104: 91.97 | O104: 8.03 | Q104: =G104/2350 -> 33.36% | R104: 40% (38-42)
A105: ВСЕГО: | C105: =C92+C95+C104 -> 1529.00 | D105: =D92+D95+D104 -> 48.70 | E105: 50.54 | F105: 201.52 | G105: =G92+G95+G104 -> 1470.87 | H105: 0.53 | I105: 47.83 | J105: 203.89 | K105: 5.52 | L105: 776.55 | M105: 873.17 | N105: 191.52 | O105: 12.52 | Q105: =G105/2350 -> 62.59% | R105: 70% (66,5-73,5%)
A107: День 5 - ый
A108: Наименование блюд и | C108: Масса | D108: Пищевые вещества | G108: Энергетическая | H108: В1,мг | I108: С,мг | J108: A,мкг | K108: Е,мг | L108: Ca | M108: P | N108: Mg | O108: Fe | P108: Сборник
A109: продуктов | C109: порции | G109: ценность | P109: рецептур
D110: белки | E110: жиры | F110: угл-ды | G110: Ккал
B111: ЗАВТРАК
A112: Бутерброд с маслом | C112: 30/10 | D112: 2.33 | E112: 8.12 | F112: 15.55 | G112: 144.60 | H112: 0.03 | I112: 0.00 | J112: 40.00 | K112: 0.62 | L112: 8.10 | M112: 22.50 | N112: 3.90 | O112: 0.38 | P112: №1 сб 2017 шк
A113: Омлет натуральный | C113: 150 | D113: 12.10 | E113: 13.05 | F113: 7.64 | G113: 187.60 | H113: 0.10 | I113: 0.26 | J113: 324.57 | K113: 0.75 | L113: 103.09 | M113: 225.78 | N113: 16.14 | O113: 2.64 | P113: №210 сб 2017 шк
A114: Чай с молоком ,с сахаром | C114: 150/40/10 | D114: 1.46 | E114: 1.08 | F114: 11.96 | G114: 63.70 | H114: 0.02 | I114: 0.67 | J114: 8.00 | K114: 0.00 | L114: 63.02 | M114: 48.36 | N114: 12.20 | O114: 1.30 | P114: №378 СБ шк 2017
A115: Фрукты свежие (Яблоки) | C115: 120 | D115: 0.48 | E115: 0.48 | F115: 11.76 | G115: 56.40 | H115: 0.04 | I115: 12.00 | J115: 0.00 | K115: 0.24 | L115: 19.20 | M115: 13.20 | N115: 10.80 | O115: 2.64 | P115: №338 сб 2017 шк
A116: Батон высший сорт | C116: 30 | D116: 2.25 | E116: 0.87 | F116: 15.42 | G116: 78.60 | H116: 0.03 | I116: 0.00 | J116: 0.00 | K116: 0.51 | L116: 5.70 | M116: 19.50 | N116: 3.90 | O116: 0.36 | P116: стр 134 табл. 6 Дели Плюс 2012г,
A117: Итого: | C117: 540 | D117: =SUM(D112:D116) -> 18.62 | E117: =SUM(E112:E116) -> 23.60 | F117: 62.33 | G117: =SUM(G112:G116) -> 530.90 | H117: 0.22 | I117: 12.93 | J117: 372.57 | K117: 2.12 | L117: 199.10 | M117: 329.34 | N117: 46.94 | O117: 7.32
B118: 2 - ой ЗАВТРАК
A119: Нектар плодовый (разливной) | C119: 180 | D119: 0.90 | E119: 0.00 | F119: 18.18 | G119: 76 | H119: 0.0198 | I119: 3.6 | J119: 0 | K119: 0.18 | L119: 12.6 | M119: 12.6 | N119: 7.2 | O119: 2.52 | P119: №389 сб 2017 шк
A120: Итого: | C120: 180 | D120: =SUM(D119:D119) -> 0.90 | E120: 0.00 | F120: 18.18 | G120: 76.32 | H120: 0.02 | I120: 3.60 | J120: 0.00 | K120: 0.18 | L120: 12.60 | M120: 12.60 | N120: 7.20 | O120: 2.52
A121: Итого за завтрак: | C121: =C117+C120 -> 720.00 | D121: =D117+D120 -> 19.52 | E121: =E117+E120 -> 23.60 | F121: 80.51 | G121: =G117+G120 -> 607.22 | H121: 0.24 | I121: 16.53 | J121: 372.57 | K121: 2.30 | L121: 211.70 | M121: 341.94 | N121: 54.14 | O121: 9.84 | Q121: =G121/2350 -> 25.84% | R121: 30% (28,5-31,5)
B122: ОБЕД
A123: Салат из отварной свеклы с маслом растительным | C123: 60 | D123: 0.84 | E123: 3.61 | F123: 4.96 | G123: 55.68 | H123: 0.01 | I123: 3.99 | K123: 1.62 | L123: 21.28 | M123: 24.38 | N123: 12.42 | O123: 0.79 | P123: №52 сб 2017 шк
A124: Суп картофельный с мясными фрикадельками | C124: 200/11 | D124: 4.07 | E124: 7.55 | F124: 13.58 | G124: 112.77 | H124: 0.11 | I124: 9.66 | J124: 2.20 | K124: 1.09 | L124: 26.73 | M124: 85.02 | N124: 28.66 | O124: 1.13 | P124: №97 шк 2017 сб
A125: Биточки рыбные из минтая | C125: 90 | D125: 11.63 | E125: 7.38 | F125: 14.26 | G125: 171.00 | H125: 0.07 | I125: 0.59 | J125: 8.46 | K125: 4.52 | L125: 64.69 | M125: 166.91 | N125: 37.03 | O125: 1.31 | P125: № 234 шк 2017 сб
A126: Макаронные изделия отварные с маслом сливочным | C126: 150/3 | D126: 5.68 | E126: 2.84 | F126: 31.96 | G126: 176.06 | H126: 0.06 | K126: 0.81 | L126: 11.91 | M126: 38.07 | N126: 8.62 | O126: 0.86 | P126: №202 сб шк 2017
A127: Компот из свежих яблок | C127: 200 | D127: 0.16 | E127: 0.16 | F127: 27.88 | G127: 114.60 | H127: 0.01 | I127: 0.90 | J127: 0.00 | K127: 0.08 | L127: 14.18 | M127: 4.40 | N127: 5.14 | O127: 0.95 | P127: №342 сб 2017 шк
A128: Хлеб ржаной | C128: 50 | D128: 3.30 | E128: 0.60 | F128: 19.80 | G128: 99.00 | H128: 0.09 | I128: 0.00 | J128: 0.00 | K128: 0.70 | L128: 14.50 | M128: 75.00 | N128: 23.50 | O128: 1.95 | P128: стр 144 табл. 6 Дели Плюс 2012г,
A129: Хлеб пшеничный | C129: 40 | D129: 3.04 | E129: 0.32 | F129: 19.68 | G129: 94.00 | H129: 0.044 | I129: 0 | J129: 0 | K129: 0.44 | L129: 8 | M129: 26 | N129: 5.6 | O129: 0.44 | P129: стр 134 табл. 6 Дели Плюс 2012г,
A130: Итого: | C130: 804 | D130: =SUM(D123:D129) -> 28.72 | E130: 26.30 | F130: =SUM(F123:F129) -> 132.11 | G130: =SUM(G123:G129) -> 823.11 | H130: 0.39 | I130: 15.14 | J130: 10.66 | K130: 9.25 | L130: 161.29 | M130: 419.78 | N130: 120.96 | O130: 7.44 | Q130: =G130/2350 -> 35.03% | R130: 40% (38-42)
A131: ВСЕГО: | C131: =C117+C120+C130 -> 1524.00 | D131: =D117+D120+D130 -> 48.24 | E131: =E117+E120+E130 -> 49.90 | F131: 212.62 | G131: =G117+G120+G130 -> 1430.33 | H131: 0.64 | I131: 31.67 | J131: 383.23 | K131: 11.55 | L131: 372.99 | M131: 761.72 | N131: 175.10 | O131: 17.28 | Q131: =G131/2350 -> 60.87% | R131: 70% (66,5-73,5%)
A134: День 6 - ый
A135: Наименование блюд и | C135: Масса | D135: Пищевые вещества | G135: Энергетическая | H135: В1,мг | I135: С,мг | J135: A,мкг | K135: Е,мг | L135: Ca | M135: P | N135: Mg | O135: Fe | P135: Сборник
A136: продуктов | C136: порции | G136: ценность | P136: рецептур
D137: белки | E137: жиры | F137: угл-ды | G137: Ккал
B138: ЗАВТРАК
A139: Бутерброд с маслом | C139: 30/10 | D139: 2.33 | E139: 8.12 | F139: 15.55 | G139: 144.60 | H139: 0.03 | I139: 0.00 | J139: 40.00 | K139: 0.62 | L139: 8.10 | M139: 22.50 | N139: 3.90 | O139: 0.38 | P139: №1 сб 2017 шк
A140: Каша кукурузная молочная | C140: 150 | D140: 4.11 | E140: 5.99 | F140: 26.59 | G140: 161.00 | H140: 0.07 | I140: 0.72 | J140: 11.10 | K140: 0.22 | L140: 102.05 | M140: 112.96 | N140: 23.71 | O140: 1.25 | P140: №174 сб 2017 шк
A141: Блины с маслом сливочным | C141: 45/5 | D141: 2.43 | E141: 0.95 | F141: 11.60 | G141: 99.14 | H141: 0.05 | I141: 0.00 | J141: 29.14 | K141: 0.73 | L141: 11.01 | M141: 29.90 | N141: 8.59 | O141: 0.50 | P141: ТТК №656 от 28.04.2020
A142: Какао с молоком | C142: 200 | D142: 4.08 | E142: 3.81 | F142: 7.60 | G142: 78.60 | H142: 0.06 | I142: 1.59 | J142: 24.40 | K142: 0.00 | L142: 151.92 | M142: 124.56 | N142: 21.34 | O142: 0.45 | P142: №382 сб шк 2017
A143: Фрукты свежие (Яблоки) | C143: 120 | D143: 0.48 | E143: 0.48 | F143: 11.76 | G143: 56.40 | H143: 0.04 | I143: 12.00 | J143: 0.00 | K143: 0.24 | L143: 19.20 | M143: 13.20 | N143: 10.80 | O143: 2.64 | P143: №338 сб 2017 шк
A144: Батон высший сорт | C144: 30 | D144: 2.25 | E144: 0.87 | F144: 15.42 | G144: 78.60 | H144: 0.03 | I144: 0.00 | J144: 0.00 | K144: 0.51 | L144: 5.70 | M144: 19.50 | N144: 3.90 | O144: 0.36 | P144: стр 134 табл. 6 Дели Плюс 2012г,
A145: Итого: | C145: 590 | D145: =SUM(D139:D144) -> 15.67 | E145: =SUM(E139:E144) -> 20.22 | F145: 88.52 | G145: =SUM(G139:G144) -> 618.34 | H145: 0.27 | I145: 14.31 | J145: 104.64 | K145: 2.31 | L145: 297.98 | M145: 322.62 | N145: 72.24 | O145: 5.57
B146: 2 - ой ЗАВТРАК
A147: Ряженка | C147: 200 | D147: 5.80 | E147: 5.00 | F147: 8.40 | G147: 102.00 | H147: 0.04 | I147: 0.60 | J147: 28.00 | L147: 248.00 | M147: 184.00 | N147: 28.00 | O147: 0.20 | P147: №386 шк 2017 сб
A148: Итого: | C148: =C147 -> 200 | D148: =D147 -> 5.8 | E148: 5 | F148: 8.4 | G148: 102 | H148: 0.04 | I148: 0.6 | J148: 28 | K148: 0 | L148: 248 | M148: 184 | N148: 28 | O148: 0.2
A149: Итого за завтрак: | C149: =C145+C148 -> 790.00 | D149: =D145+D148 -> 21.47 | E149: 25.22 | F149: 96.92 | G149: =G145+G148 -> 720.34 | H149: 0.31 | I149: 14.91 | J149: 132.64 | K149: 2.31 | L149: 545.98 | M149: 506.62 | N149: 100.24 | O149: 5.77 | P149: 0.00 | Q149: =G149/2350 -> 30.65% | R149: 30% (28,5-31,5)
B150: ОБЕД
A151: Помидоры свежие порционно | C151: 60 | D151: 0.66 | E151: 0.12 | F151: 2.28 | G151: 14.40 | H151: 0.04 | I151: 15.00 | J151: 0.00 | K151: 0.42 | L151: 8.40 | M151: 15.60 | N151: 12.00 | O151: 0.54 | P151: №71 сб шк 2017
A152: Суп из овощей на курином бульоне, со сметаной | C152: 200/10 | D152: 1.53 | E152: 5.49 | F152: 7.68 | G152: 92.40 | H152: 0.06 | I152: 8.34 | J152: 10.00 | K152: 1.89 | L152: 36.68 | M152: 45.52 | N152: 17.50 | O152: 0.64 | P152: №99 шк 2017 сб
A153: Плов из отварных куриных грудок | C153: 250 | D153: 16.52 | E153: 19.80 | F153: 52.80 | G153: 443.33 | H153: 0.18 | I153: 8.17 | J153: 35.00 | K153: 0.68 | L153: 45.12 | M153: 236.67 | N153: 67.42 | O153: 2.33 | P153: №291 шк 2017 сб
A154: Нектар плодовый (разливной) | C154: 180 | D154: 0.90 | E154: 0.00 | F154: 18.18 | G154: 76 | H154: 0.0198 | I154: 3.6 | J154: 0 | K154: 0.18 | L154: 12.6 | M154: 12.6 | N154: 7.2 | O154: 2.52 | P154: №389 сб 2017 шк
A155: Хлеб ржаной | C155: 50 | D155: 3.30 | E155: 0.60 | F155: 19.80 | G155: 99.00 | H155: 0.09 | I155: 0.00 | J155: 0.00 | K155: 0.70 | L155: 14.50 | M155: 75.00 | N155: 23.50 | O155: 1.95 | P155: стр 144 табл. 6 Дели Плюс 2012г,
A156: Хлеб пшеничный | C156: 40 | D156: 3.04 | E156: 0.32 | F156: 19.68 | G156: 94.00 | H156: 0.044 | I156: 0 | J156: 0 | K156: 0.44 | L156: 8 | M156: 26 | N156: 5.6 | O156: 0.44 | P156: стр 134 табл. 6 Дели Плюс 2012г,
A157: Итого: | C157: 790 | D157: =SUM(D151:D156) -> 25.95 | E157: =SUM(E151:E156) -> 26.33 | F157: 120.42 | G157: =SUM(G151:G156) -> 819.45 | H157: 0.43 | I157: 35.11 | J157: 45.00 | K157: 4.31 | L157: 125.30 | M157: 411.39 | N157: 133.22 | O157: 8.42 | Q157: =G157/2350 -> 34.87% | R157: 40% (38-42)
A158: ВСЕГО: | C158: =C145+C148+C157 -> 1580.00 | D158: =D145+D148+D157 -> 47.42 | E158: =E145+E148+E157 -> 51.55 | F158: 217.34 | G158: 1539.79 | H158: 0.74 | I158: 50.01 | J158: 177.64 | K158: 6.63 | L158: 671.28 | M158: 918.01 | N158: 233.45 | O158: 14.20 | Q158: =G158/2350 -> 65.52% | R158: 70% (66,5-73,5%)
A160: День 7 - ой
A161: Наименование блюд и | C161: Масса | D161: Пищевые вещества | G161: Энергетическая | H161: В1,мг | I161: С,мг | J161: A,мкг | K161: Е,мг | L161: Ca | M161: P | N161: Mg | O161: Fe | P161: Сборник
A162: продуктов | C162: порции | G162: ценность | P162: рецептур
D163: белки | E163: жиры | F163: угл-ды | G163: Ккал
B164: ЗАВТРАК
A165: Бутерброд с сыром,с маслом | C165: 30/15/10 | D165: 6.28 | E165: 12.11 | F165: 15.55 | G165: 196.10 | H165: 0.04 | I165: 0.11 | J165: 71.50 | K165: 0.68 | L165: 158.10 | M165: 112.50 | N165: 12.15 | O165: 0.49 | P165: №3 сб 2017 шк
A166: Сырники творожные с молоком сгущенным | C166: 180/20 | D166: 7.80 | E166: 5.21 | F166: 22.70 | G166: 182.20 | H166: 0.12 | I166: 0.67 | J166: 102.60 | K166: 5.15 | L166: 348.88 | M166: 452.89 | N166: 48.34 | O166: 1.26 | P166: №219 сб 2017 шк
A167: Чай с сахаром с лимоном | C167: 185/10/5 | D167: 0.13 | E167: 0.02 | F167: 10.20 | G167: 42.00 | H167: 0.12 | I167: 2.00 | J167: 51.70 | K167: 4.02 | L167: 34.97 | M167: 301.50 | N167: 52.71 | O167: 3.56 | P167: №377 СБ 2017,шк
A168: Фрукты свежие (Яблоки) | C168: 120 | D168: 0.48 | E168: 0.48 | F168: 11.76 | G168: 56.40 | H168: 0.036 | I168: 12 | J168: 0 | K168: 0.24 | L168: 19.2 | M168: 13.2 | N168: 10.8 | O168: 2.64 | P168: №338 сб 2017 шк
A169: Батон высший сорт | C169: 30 | D169: 2.25 | E169: 0.87 | F169: 15.42 | G169: 78.60 | H169: 0.03 | I169: 0.00 | J169: 0.00 | K169: 0.51 | L169: 5.70 | M169: 19.50 | N169: 3.90 | O169: 0.36 | P169: стр 134 табл. 6 Дели Плюс 2012г,
A170: Итого: | C170: 605 | D170: =SUM(D165:D169) -> 16.94 | E170: =SUM(E165:E169) -> 18.69 | F170: 75.63 | G170: =SUM(G165:G169) -> 555.30 | H170: 0.35 | I170: 14.77 | J170: 225.80 | K170: 10.59 | L170: 566.85 | M170: 899.58 | N170: 127.90 | O170: 8.30
B171: 2 - ой ЗАВТРАК
A172: Молоко кипяченное | C172: 200 | D172: 5.80 | E172: 5.00 | F172: 9.60 | G172: 107.00 | H172: 0.08 | I172: 2.60 | J172: 40.00 | L172: 240.00 | M172: 180.00 | N172: 28.00 | O172: 0.20 | P172: №385 СБ шк 2017
A173: Итого: | C173: 200 | D173: =SUM(D172:D172) -> 5.80 | E173: 5.00 | F173: 9.60 | G173: 107.00 | H173: 0.08 | I173: 2.60 | J173: 40.00 | K173: 0.00 | L173: 240.00 | M173: 180.00 | N173: 28.00 | O173: 0.20
A174: Итого за завтрак: | C174: =C170+C173 -> 805 | D174: =D170+D173 -> 22.74 | E174: =E170+E173 -> 23.69 | F174: 85.23 | G174: =G170+G173 -> 662.30 | H174: 0.43 | I174: 17.37 | J174: 265.80 | K174: 10.59 | L174: 806.85 | M174: 1079.58 | N174: 155.90 | O174: 8.50 | Q174: =G174/2350 -> 28.18% | R174: 30% (28,5-31,5)
B175: ОБЕД
A176: Огурцы соленые (доп гарнир) | C176: 30 | D176: 0.24 | E176: 0.03 | F176: 0.51 | G176: 3.00 | H176: 0.01 | I176: 1.05 | J176: 0.00 | K176: 0.03 | L176: 6.90 | M176: 7.20 | N176: 4.20 | O176: 0.18 | P176: №70 СБ шк 2017
A177: Суп гороховый с мясными фрикадельками и гренками | C177: 200/11/10 | D177: 7.83 | E177: 5.66 | F177: 20.92 | G177: 176.99 | H177: 0.22 | I177: 4.72 | J177: 2.20 | K177: 2.22 | L177: 40.13 | M177: 107.03 | N177: 37.20 | O177: 2.13 | P177: №119,105 шк 2017 сб
A178: Котлета из говядины с маслом сливочным | C178: 90/3 | D178: 15.19 | E178: 14.00 | F178: 14.84 | G178: 220.30 | H178: 0.08 | I178: 1.08 | J178: 18.32 | K178: 2.61 | L178: 14.30 | M178: 151.03 | N178: 25.15 | O178: 2.34 | P178: №271 шк 2017 сб
A179: Картофель запеченный дольками | C179: 180 | D179: 4.90 | E179: 10.58 | F179: 37.94 | G179: 273.60 | H179: 0.25 | I179: 26.10 | J179: -36.00 | K179: 8.10 | L179: 25.65 | M179: 127.42 | N179: 48.35 | O179: 1.78 | P179: №314 сб 2017 шк
A180: Компот из сухофруктов | C180: 200 | D180: 0.66 | E180: 0.09 | F180: 22.03 | G180: 92.80 | H180: 0.02 | I180: 0.73 | J180: 0.00 | K180: 0.51 | L180: 32.18 | M180: 23.44 | N180: 17.46 | O180: 0.67 | P180: №349 сб шк 2017
A181: Хлеб ржаной | C181: 50 | D181: 3.30 | E181: 0.60 | F181: 19.80 | G181: 99.00 | H181: 0.09 | I181: 0.00 | J181: 0.00 | K181: 0.70 | L181: 14.50 | M181: 75.00 | N181: 23.50 | O181: 1.95 | P181: стр 144 табл. 6 Дели Плюс 2012г,
A182: Хлеб пшеничный | C182: 40 | D182: 3.04 | E182: 0.32 | F182: 19.68 | G182: 94.00 | H182: 0.044 | I182: 0 | J182: 0 | K182: 0.44 | L182: 8 | M182: 26 | N182: 5.6 | O182: 0.44 | P182: стр 134 табл. 6 Дели Плюс 2012г,
A183: Итого: | C183: 814 | D183: =SUM(D176:D182) -> 35.16 | E183: =SUM(E176:E182) -> 31.29 | F183: 135.73 | G183: =SUM(G176:G182) -> 959.69 | H183: 0.69 | I183: 33.67 | J183: -15.48 | K183: 14.61 | L183: 141.66 | M183: 517.12 | N183: 161.45 | O183: 9.49 | Q183: =G183/2350 -> 40.84% | R183: 40% (38-42)
A184: ВСЕГО: | C184: =C170+C173+C183 -> 1619 | D184: =D170+D173+D183 -> 57.89 | E184: 54.98 | F184: 220.96 | G184: 1621.99 | H184: 1.12 | I184: 51.04 | J184: 250.32 | K184: 25.20 | L184: 948.50 | M184: 1596.70 | N184: 317.36 | O184: 17.99 | Q184: =G184/2350 -> 69.02% | R184: 70% (66,5-73,5%)
A186: День 8 - ой
A187: Наименование блюд и | C187: Масса | D187: Пищевые вещества | G187: Энергетическая | H187: В1,мг | I187: С,мг | J187: A,мкг | K187: Е,мг | L187: Ca | M187: P | N187: Mg | O187: Fe | P187: Сборник
A188: продуктов | C188: порции | G188: ценность | P188: рецептур
D189: белки | E189: жиры | F189: угл-ды | G189: Ккал
B190: ЗАВТРАК
A191: Бутерброд с маслом | C191: 30/10 | D191: 2.33 | E191: 8.12 | F191: 15.55 | G191: 144.60 | H191: 0.03 | I191: 0.00 | J191: 40.00 | K191: 0.62 | L191: 8.10 | M191: 22.50 | N191: 3.90 | O191: 0.38 | P191: №1 сб 2017 шк
A192: Каша пшеничная молочная с маслом сливочным | C192: 150/5 | D192: 6.46 | E192: 6.49 | F192: 23.21 | G192: 199.50 | H192: 0.11 | I192: 0.72 | J192: 31.10 | K192: 0.55 | L192: 109.48 | M192: 165.23 | N192: 33.25 | O192: 1.75 | P192: №173 сб шк 2017
A193: Яйцо отварное | C193: 40 | D193: 5.08 | E193: 4.60 | F193: 0.28 | G193: 62.80 | H193: 0.03 | J193: 100.00 | K193: 0.24 | L193: 22.00 | M193: 76.80 | N193: 4.80 | O193: 1.00 | P193: №209 сб шк 2017
A194: Кофейный напиток с молоком | C194: 200 | D194: 3.17 | E194: 2.68 | F194: 5.97 | G194: 60.60 | H194: 0.04 | I194: 1.30 | J194: 20.00 | K194: 0.00 | L194: 125.48 | M194: 90.00 | N194: 14.00 | O194: 0.10 | P194: №379 шк 2017 сб
A195: Фрукты свежие (Яблоки) | C195: 120 | D195: 0.48 | E195: 0.48 | F195: 11.76 | G195: 56.40 | H195: 0.036 | I195: 12 | J195: 0 | K195: 0.24 | L195: 19.2 | M195: 13.2 | N195: 10.8 | O195: 2.64 | P195: №338 сб 2017 шк
A196: Батон | C196: 30 | D196: 2.25 | E196: 0.87 | F196: 15.42 | G196: 78.60 | H196: 0.03 | I196: 0.00 | J196: 0.00 | K196: 0.51 | L196: 5.70 | M196: 19.50 | N196: 3.90 | O196: 0.36 | P196: стр 134 табл. 6 Дели Плюс 2012г,
A197: Итого: | C197: 585 | D197: =SUM(D191:D196) -> 19.77 | E197: =SUM(E191:E196) -> 23.23 | F197: 72.19 | G197: =SUM(G191:G196) -> 602.50 | H197: 0.28 | I197: 14.02 | J197: 191.10 | K197: 2.16 | L197: 289.96 | M197: 387.23 | N197: 70.65 | O197: 6.23
B198: 2 - ой ЗАВТРАК
A199: Нектар плодовый (разливной) | C199: 180 | D199: 0.90 | E199: 0.00 | F199: 18.18 | G199: 76 | H199: 0.0198 | I199: 3.6 | J199: 0 | K199: 0.18 | L199: 12.6 | M199: 12.6 | N199: 7.2 | O199: 2.52 | P199: №389 сб 2017 шк
A200: Итого: | C200: 180 | D200: =D199 -> 0.90 | E200: =E199 -> 0.00 | F200: 18.18 | G200: 76.32 | H200: 0.02 | I200: 3.60 | J200: 0.00 | K200: 0.18 | L200: 12.60 | M200: 12.60 | N200: 7.20 | O200: 2.52
A201: Итого за завтрак: | C201: =C197+C200 -> 765 | D201: =D197+D200 -> 20.67 | E201: =E197+E200 -> 23.23 | F201: 90.37 | G201: =G197+G200 -> 678.82 | H201: 0.30 | I201: 17.62 | J201: 191.10 | K201: 2.34 | L201: 302.56 | M201: 399.83 | N201: 77.85 | O201: 8.75 | Q201: =G201/2350 -> 28.89% | R201: 30% (28,5-31,5)
B202: ОБЕД
A203: Салат из зеленого горошка к/с | C203: 60 | D203: 1.79 | E203: 3.11 | F203: 3.75 | G203: 50.16 | H203: 0.06 | I203: 6.60 | K203: 1.44 | L203: 12.87 | M203: 35.97 | N203: 12.48 | O203: 0.41 | P203: №10 сб 2016 дошк
A204: Суп крестьянский с пшенной крупой | C204: 200 | D204: 3.58 | E204: 10.34 | F204: 4.87 | G204: 125.00 | H204: 0.03 | I204: 7.90 | J204: 0.00 | K204: 1.84 | L204: 28.70 | M204: 26.86 | N204: 11.34 | O204: 0.46 | P204: №98 сб 2017 шк
A205: Филе куриной грудки тушеное с овощами | C205: 50/150 | D205: 14.16 | E205: 10.92 | F205: 35.10 | G205: 335.50 | H205: 0.20 | I205: 12.48 | J205: 41.70 | K205: 1.47 | L205: 75.16 | M205: 168.94 | N205: 45.12 | O205: 4.09 | P205: ТТК
A206: Компот из свежих фруктов | C206: 200 | D206: 0.16 | E206: 0.12 | F206: 18.10 | G206: 74.60 | H206: 0.01 | I206: 0.90 | J206: 0.00 | K206: 0.16 | L206: 15.08 | M206: 6.40 | N206: 6.34 | O206: 0.96 | P206: №342 сб 2017 шк
A207: Хлеб ржаной | C207: 50 | D207: 3.30 | E207: 0.60 | F207: 19.80 | G207: 99.00 | H207: 0.09 | I207: 0.00 | J207: 0.00 | K207: 0.70 | L207: 14.50 | M207: 75.00 | N207: 23.50 | O207: 1.95 | P207: стр 144 табл. 6 Дели Плюс 2012г,
A208: Хлеб пшеничный | C208: 40 | D208: 3.04 | E208: 0.32 | F208: 19.68 | G208: 94.00 | H208: 0.044 | I208: 0 | J208: 0 | K208: 0.44 | L208: 8 | M208: 26 | N208: 5.6 | O208: 0.44 | P208: стр 134 табл. 6 Дели Плюс 2012г,
A209: Итого: | C209: 750 | D209: =D203+D204+D205+D206+D207+D208 -> 26.03 | E209: 26.41 | F209: 111.40 | G209: 788.26 | H209: =H203+H204+H205+H206+H207+H208 -> 0.43 | I209: 27.88 | J209: 41.70 | K209: 6.05 | L209: 154.31 | M209: 339.17 | N209: 104.38 | O209: 8.31 | Q209: =G209/2350 -> 33.54% | R209: 40% (38-42)
... 335 more rows

Sheet старшие 21д
A2: День 1 - ый
A3: Наименование блюд и | C3: Масса | D3: Пищевые вещества | G3: Энергетическая | H3: В1,мг | I3: С,мг | J3: A,мкг | K3: Е,мг | L3: Ca | M3: P | N3: Mg | O3: Fe | P3: Сборник
A4: продуктов | C4: порции | G4: ценность | P4: рецептур
D5: белки | E5: жиры | F5: угл-ды | G5: Ккал
B6: ЗАВТРАК
A7: Бутерброд с маслом | C7: 30/10 | D7: 2.33 | E7: 8.12 | F7: 15.55 | G7: 144.60 | H7: 0.03 | I7: 0.00 | J7: 40.00 | K7: 0.62 | L7: 8.10 | M7: 22.50 | N7: 3.90 | O7: 0.38 | P7: №1 сб 2017 шк
A8: Каша пшённая молочная с маслом сливочным | C8: 200/5 | D8: 9.47 | E8: 7.90 | F8: 39.00 | G8: 257.90 | H8: 0.19 | I8: 1.17 | J8: 38.00 | K8: 0.15 | L8: 136.90 | M8: 182.87 | N8: 47.60 | O8: 1.22 | P8: №173 СБ шк 2017
A9: Чай с молоком, с сахаром | C9: 150/40/10 | D9: 1.46 | E9: 1.08 | F9: 11.96 | G9: 63.70 | H9: 0.02 | I9: 0.67 | J9: 8.00 | K9: 0.00 | L9: 63.02 | M9: 48.36 | N9: 12.20 | O9: 1.30 | P9: №378 СБ шк 2017
A10: Фрукты свежие (Яблоки) | C10: 120 | D10: 0.48 | E10: 0.48 | F10: 11.76 | G10: 56.40 | H10: 0.036 | I10: 12 | J10: 0 | K10: 0.24 | L10: 19.2 | M10: 13.2 | N10: 10.8 | O10: 2.64 | P10: №338 сб 2017 шк
A11: Батон высший сорт | C11: 30 | D11: 2.25 | E11: 0.87 | F11: 15.42 | G11: 78.60 | H11: 0.03 | I11: 0.00 | J11: 0.00 | K11: 0.51 | L11: 5.70 | M11: 19.50 | N11: 3.90 | O11: 0.36 | P11: стр 134 табл. 6 Дели Плюс 2012г,
A12: Итого: | C12: 595 | D12: =D7+D8+D9+D10+D11 -> 15.99 | E12: =E7+E8+E9+E10+E11 -> 18.45 | F12: 93.69 | G12: 601.20 | H12: 0.31 | I12: 13.84 | J12: 86.00 | K12: 1.52 | L12: 232.92 | M12: 286.43 | N12: 78.40 | O12: 5.90
B13: 2 - ой ЗАВТРАК
A14: Печенье | C14: 35 | D14: 2.59 | E14: 3.29 | F14: 25.59 | G14: 142.45 | H14: 0.05 | K14: 1.30 | L14: 9.10 | M14: 29.40 | N14: 10.50 | O14: 0.49
A15: Молоко кипяченное | C15: 200 | D15: 5.80 | E15: 5.00 | F15: 9.60 | G15: 107.00 | H15: 0.08 | I15: 2.60 | J15: 40.00 | L15: 240.00 | M15: 180.00 | N15: 28.00 | O15: 0.20 | P15: №385 СБ шк 2017
A16: Итого: | C16: 235 | D16: =SUM(D14:D15) -> 8.39 | E16: =SUM(E14:E15) -> 8.29 | F16: 35.19 | G16: 249.45 | H16: 0.13 | I16: 2.60 | J16: 40.00 | K16: 1.30 | L16: 249.10 | M16: 209.40 | N16: 38.50 | O16: 0.69
A17: Итого за завтрак: | C17: =C12+C16 -> 830 | D17: =D12+D16 -> 24.38 | E17: =E12+E16 -> 26.74 | F17: 128.88 | G17: 850.65 | H17: 0.44 | I17: 16.44 | J17: 126.00 | K17: 2.82 | L17: 482.02 | M17: 495.83 | N17: 116.90 | O17: 6.59 | Q17: =G17/2720 -> 31.27% | R17: 30% (28,5-31,5)
B18: ОБЕД
A19: Помидоры свежие порционно | C19: 100 | D19: 1.10 | E19: 0.20 | F19: 3.80 | G19: 24.00 | H19: 0.06 | I19: 25.00 | J19: 0.00 | K19: 0.70 | L19: 14.00 | M19: 26.00 | N19: 20.00 | O19: 0.90 | P19: №71 сб шк 2017
A20: Щи из свежей капусты с картофелем,со сметаной | C20: 250/10 | D20: 2.29 | E20: 6.45 | F20: 18.26 | G20: 105.95 | H20: 0.06 | I20: 15.82 | J20: 10.00 | K20: 2.38 | L20: 58.05 | M20: 55.10 | N20: 23.03 | O20: 0.85 | P20: №88,105 сб 2017шк
A21: Жаркое по - домашнему с куриной грудкой | C21: 50/200 | D21: 17.91 | E21: 30.10 | F21: 38.90 | G21: 495.00 | H21: 0.14 | I21: 11.24 | J21: 36.38 | K21: 4.85 | L21: 69.63 | M21: 239.25 | N21: 54.15 | O21: 5.22 | P21: ТТК
A22: Нектар плодовый (разливной) | C22: 180 | D22: 0.90 | E22: 0.00 | F22: 18.18 | G22: 76 | H22: 0.0198 | I22: 3.6 | J22: 0 | K22: 0.18 | L22: 12.6 | M22: 12.6 | N22: 7.2 | O22: 2.52 | P22: №389 сб 2017 шк
A23: Хлеб ржаной | C23: 60 | D23: 3.96 | E23: 0.72 | F23: 23.76 | G23: 119 | H23: 0.102 | K23: 0.84 | L23: 17.4 | M23: 90 | N23: 28.2 | O23: 2.34 | P23: стр 144 табл. 6 Дели Плюс 2012г,
A24: Хлеб пшеничный | C24: 50 | D24: 3.8 | E24: 0.4 | F24: 24.6 | G24: 118 | H24: 0.055 | I24: 0 | J24: 0 | K24: 0.55 | L24: 10 | M24: 32.5 | N24: 7 | O24: 0.55 | P24: стр 134 табл. 6 Дели Плюс 2012г,
A25: Итого: | C25: 900 | D25: =SUM(D19:D24) -> 29.96 | E25: =SUM(E19:E24) -> 37.87 | F25: 127.50 | G25: 937.57 | H25: 0.44 | I25: 55.66 | J25: 46.38 | K25: 9.50 | L25: 181.68 | M25: 455.45 | N25: 139.57 | O25: 12.37 | Q25: =G25/2720 -> 34.47% | R25: 40% (38-42)
A26: ВСЕГО: | C26: =C12+C16+C25 -> 1730 | D26: =D12+D16+D25 -> 54.34 | E26: 64.61 | F26: 256.38 | G26: 1788.22 | H26: 0.87 | I26: 72.10 | J26: 172.38 | K26: 12.32 | L26: 663.69 | M26: 951.28 | N26: 256.47 | O26: 18.96 | Q26: =G26/2720 -> 65.74% | R26: 70% (66,5-73,5%)
A28: День 2- ой
A29: Наименование блюд и | C29: Масса | D29: Пищевые вещества | G29: Энергетическая | H29: В1,мг | I29: С,мг | J29: A,мкг | K29: Е,мг | L29: Ca | M29: P | N29: Mg | O29: Fe | P29: Сборник
A30: продуктов | C30: порции | G30: ценность | P30: рецептур
D31: белки | E31: жиры | F31: угл-ды | G31: Ккал
B32: ЗАВТРАК
A33: Бутерброд с сыром,с маслом | C33: 30/15/10 | D33: 6.28 | E33: 12.11 | F33: 15.55 | G33: 196.10 | H33: 0.04 | I33: 0.11 | J33: 71.50 | K33: 0.68 | L33: 158.10 | M33: 112.50 | N33: 12.15 | O33: 0.49 | P33: №3 сб 2017 шк
A34: Каша геркулесовая молочная с маслом сливочным | C34: 200/5 | D34: 5.28 | E34: 6.20 | F34: 37.58 | G34: 203.67 | H34: 0.18 | I34: 0.96 | J34: 37.02 | K34: 0.57 | L34: 148.55 | M34: 233.65 | N34: 70.82 | O34: 1.72 | P34: №173 сб шк 2017
A35: Яйцо отварное | C35: 40 | D35: 5.08 | E35: 4.60 | F35: 0.28 | G35: 62.80 | H35: 0.03 | J35: 100.00 | K35: 0.24 | L35: 22.00 | M35: 76.80 | N35: 4.80 | O35: 1.00 | P35: №209 сб шк2017
A36: Какао с молоком | C36: 200 | D36: 4.08 | E36: 3.81 | F36: 7.60 | G36: 78.60 | H36: 0.06 | I36: 1.59 | J36: 24.40 | K36: 0.00 | L36: 151.92 | M36: 124.56 | N36: 21.34 | O36: 0.45 | P36: №382 сб шк 2017
A37: Батон высший сорт | C37: 50 | D37: 3.75 | E37: 1.45 | F37: 25.70 | G37: 131.00 | H37: 0.06 | I37: 0.00 | J37: 0.00 | K37: 0.85 | L37: 9.50 | M37: 32.50 | N37: 6.50 | O37: 0.60 | P37: стр 134 табл. 6 Дели Плюс 2012г,
A38: Итого: | C38: 550 | D38: =SUM(D33:D37) -> 24.46 | E38: =SUM(E33:E37) -> 28.17 | F38: 86.71 | G38: 672.17 | H38: 0.36 | I38: 2.65 | J38: 232.92 | K38: 2.34 | L38: 490.07 | M38: 580.01 | N38: 115.61 | O38: 4.26
B39: 2 - ой ЗАВТРАК
A40: Нектар плодовый (разливной) | C40: 180 | D40: 0.90 | E40: 0.00 | F40: 18.18 | G40: 76.32 | H40: 0.0198 | I40: 3.6 | J40: 0 | K40: 0.18 | L40: 12.6 | M40: 12.6 | N40: 7.2 | O40: 2.52 | P40: №389 сб 2017 шк
A41: Итого: | C41: 180 | D41: =D40 -> 0.90 | E41: =E40 -> 0.00 | F41: =F40 -> 18.18 | G41: =G40 -> 76.32 | H41: =H40 -> 0.02 | I41: =I40 -> 3.60 | J41: 0.00 | K41: 0.18 | L41: 12.60 | M41: 12.60 | N41: 7.20 | O41: 2.52
A42: Итого за завтрак: | C42: =C38+C41 -> 730 | D42: =D38+D41 -> 25.36 | E42: =E38+E41 -> 28.17 | F42: 104.89 | G42: 748.49 | H42: 0.38 | I42: 6.25 | J42: 232.92 | K42: 2.52 | L42: 502.67 | M42: 592.61 | N42: 122.81 | O42: 6.78 | Q42: =G42/2720 -> 27.52% | R42: 30% (28,5-31,5)
B43: ОБЕД
A44: Огурцы свежие | C44: 100 | D44: 0.80 | E44: 0.10 | F44: 2.50 | G44: 14.00 | H44: 0.03 | I44: 10.00 | J44: 0.00 | K44: 0.10 | L44: 23.00 | M44: 42.00 | N44: 14.00 | O44: 0.60 | P44: №71 сб шк 2017
A45: Суп картофельный с крупой на мясном бульоне | C45: 250 | D45: 1.97 | E45: 6.37 | F45: 12.11 | G45: 105.75 | H45: 0.09 | I45: 8.25 | J45: 0.00 | K45: 1.23 | L45: 26.70 | M45: 55.98 | N45: 22.78 | O45: 0.88 | P45: №101 сб шк 2017
A46: Гуляш из отварной говядины | C46: 50/50 | D46: 14.50 | E46: 22.19 | F46: 4.89 | G46: 271.00 | H46: 0.03 | I46: 0.92 | K46: 2.61 | L46: 21.81 | M46: 154.15 | N46: 22.03 | O46: 3.06 | P46: №260 сб шк 2017
A47: Макаронные изделия отварные | C47: 180 | D47: 6.79 | E47: 0.80 | F47: 38.30 | G47: 187.56 | H47: 0.07 | K47: 0.93 | L47: 13.43 | M47: 44.60 | N47: 10.34 | O47: 1.02 | P47: №203 сб шк 2017
A48: Компот из сухофруктов | C48: 200 | D48: 0.66 | E48: 0.09 | F48: 22.03 | G48: 92.80 | H48: 0.02 | I48: 0.73 | J48: 0.00 | K48: 0.51 | L48: 32.18 | M48: 23.44 | N48: 17.46 | O48: 0.67 | P48: №349 сб шк 2017
A49: Хлеб ржаной | C49: 60 | D49: 3.96 | E49: 0.72 | F49: 23.76 | G49: 118.80 | H49: 0.10 | K49: 0.84 | L49: 17.40 | M49: 90.00 | N49: 28.20 | O49: 2.34 | P49: стр 144 табл. 6 Дели Плюс 2012г,
A50: Хлеб пшеничный | C50: 50 | D50: 3.8 | E50: 0.4 | F50: 24.6 | G50: 118 | H50: 0.055 | I50: 0 | J50: 0 | K50: 0.55 | L50: 10 | M50: 32.5 | N50: 7 | O50: 0.55 | P50: стр 134 табл. 6 Дели Плюс 2012г,
A51: Итого: | C51: 940 | D51: =SUM(D44:D50) -> 32.49 | E51: =SUM(E44:E50) -> 30.67 | F51: 128.20 | G51: 907.41 | H51: 0.39 | I51: 19.90 | J51: 0.00 | K51: 6.76 | L51: 144.52 | M51: 442.67 | N51: 121.81 | O51: 9.12 | Q51: =G51/2720 -> 33.36% | R51: 40% (38-42)
A52: ВСЕГО: | C52: =C38+C41+C51 -> 1670 | D52: =D38+D41+D51 -> 57.85 | E52: 58.84 | F52: 233.09 | G52: 1655.90 | H52: 0.77 | I52: 26.15 | J52: 232.92 | K52: 9.28 | L52: 647.19 | M52: 1035.27 | N52: 244.62 | O52: 15.89 | Q52: =G52/2720 -> 60.88% | R52: 70% (66,5-73,5%)
A54: День 3 - ий
A55: Наименование блюд и | C55: Масса | D55: Пищевые вещества | G55: Энергетическая | H55: В1,мг | I55: С,мг | J55: A,мкг | K55: Е,мг | L55: Ca | M55: P | N55: Mg | O55: Fe | P55: Сборник
A56: продуктов | C56: порции | G56: ценность | P56: рецептур
D57: белки | E57: жиры | F57: угл-ды | G57: Ккал
B58: ЗАВТРАК
A59: Бутерброд с маслом | C59: 30/10 | D59: 2.33 | E59: 8.12 | F59: 15.55 | G59: 144.60 | H59: 0.03 | I59: 0.00 | J59: 40.00 | K59: 0.62 | L59: 8.10 | M59: 22.50 | N59: 3.90 | O59: 0.38 | P59: №1 сб 2017 шк
A60: Запеканка творожная с молоком сгущенным | C60: 170/30 | D60: 8.10 | E60: 7.85 | F60: 14.88 | G60: 205.88 | H60: 0.12 | I60: 0.74 | J60: 154.70 | K60: 0.99 | L60: 345.03 | M60: 425.05 | N60: 50.29 | O60: 1.45 | P60: №223 СБ 2017 шк
A61: Блины с маслом сливочным | C61: 45/5 | D61: 2.43 | E61: 0.95 | F61: 11.60 | G61: 99.14 | H61: 0.05 | I61: 0.00 | J61: 29.14 | K61: 0.73 | L61: 11.01 | M61: 29.90 | N61: 8.59 | O61: 0.50 | P61: ТТК №656 от 28.04.2020
A62: Чай с сахаром | C62: 190/10 | D62: 0.38 | E62: 0.10 | F62: 10.06 | G62: 42.66 | H62: 0.0019 | I62: 0.19 | J62: 0 | K62: 0 | L62: 18.939 | M62: 15.656 | N62: 8.36 | O62: 1.588 | P62: №376 сб 2017 шк
A63: Фрукты свежие (Яблоки) | C63: 120 | D63: 0.48 | E63: 0.48 | F63: 11.76 | G63: 56.40 | H63: 0.036 | I63: 12 | J63: 0 | K63: 0.24 | L63: 19.2 | M63: 13.2 | N63: 10.8 | O63: 2.64 | P63: №338 сб 2017 шк
A64: Батон высший сорт | C64: 30 | D64: 2.25 | E64: 0.87 | F64: 15.42 | G64: 78.60 | H64: 0.03 | I64: 0.00 | J64: 0.00 | K64: 0.51 | L64: 5.70 | M64: 19.50 | N64: 3.90 | O64: 0.36 | P64: стр 134 табл. 6 Дели Плюс 2012г,
A65: Итого: | C65: 640 | D65: =SUM(D59:D64) -> 15.97 | E65: =SUM(E59:E64) -> 18.37 | F65: 79.27 | G65: =SUM(G59:G64) -> 627.28 | H65: 0.28 | I65: 12.93 | J65: 223.84 | K65: 3.08 | L65: 407.98 | M65: 525.81 | N65: 85.83 | O65: 6.92
B66: 2 - ой ЗАВТРАК
A67: Крекер | C67: 20 | D67: 1.84 | E67: 2.82 | F67: 12.64 | G67: 83.20 | H67: 0.03 | I67: 0.00 | K67: 1.30 | L67: 5.20 | M67: 21.40 | N67: 5.00 | O67: 0.28
A68: Молоко кипяченное | C68: 200 | D68: 5.80 | E68: 5.00 | F68: 9.60 | G68: 107.00 | H68: 0.08 | I68: 2.60 | J68: 40.00 | L68: 240.00 | M68: 180.00 | N68: 28.00 | O68: 0.20 | P68: №385 СБ шк 2017
A69: Итого: | C69: 220 | D69: =SUM(D67:D68) -> 7.64 | E69: =SUM(E67:E68) -> 7.82 | F69: 22.24 | G69: 190.20 | H69: 0.11 | I69: 2.60 | J69: 40.00 | K69: 1.30 | L69: 245.20 | M69: 201.40 | N69: 33.00 | O69: 0.48
A70: Итого за завтрак: | C70: =C65+C69 -> 860 | D70: =D65+D69 -> 23.61 | E70: =E65+E69 -> 26.19 | F70: 101.51 | G70: =G65+G69 -> 817.48 | H70: 0.38 | I70: 15.53 | J70: 263.84 | K70: 4.38 | L70: 653.18 | M70: 727.21 | N70: 118.83 | O70: 7.40 | Q70: =G70/2720 -> 30.05% | R70: 30% (28,5-31,5)
B71: ОБЕД
A72: Огурцы свежие | C72: 100 | D72: 0.80 | E72: 0.10 | F72: 2.50 | G72: 14.00 | H72: 0.03 | I72: 10.00 | J72: 0.00 | K72: 0.10 | L72: 23.00 | M72: 42.00 | N72: 14.00 | O72: 0.60 | P72: №71 сб шк 2017
A73: Рассольник ленинградский с мясными фрикадельками,со сметаной | C73: 250/11/10 | D73: 5.67 | E73: 9.88 | F73: 12.42 | G73: 145.02 | H73: 0.10 | I73: 8.47 | J73: 12.20 | K73: 2.45 | L73: 40.32 | M73: 85.67 | N73: 28.62 | O73: 1.12 | P73: №96,сб 2017 шк
A74: Рыба тушеная с овощами | C74: 80/40 | D74: 10.43 | E74: 11.62 | F74: 9.04 | G74: 180.33 | H74: 0.04 | I74: 3.05 | J74: 25.66 | K74: 2.06 | L74: 131.26 | M74: 189.75 | N74: 44.32 | O74: 0.75 | P74: №229 сб 2017 шк
A75: Пюре картофельное с капустой тушеной (доп.гарнир) | C75: 200/30 | D75: 4.698 | E75: 7.88 | F75: 43.75 | G75: 284.47 | H75: 0.20 | I75: 29.34 | J75: 0.00 | K75: 0.83 | L75: 66.93 | M75: 127.67 | N75: 43.26 | O75: 1.60 | P75: №312, 139 шк 2017 сб
A76: Напиток из шиповника | C76: 200 | D76: 0.68 | E76: 0.28 | F76: 20.76 | G76: 88.20 | H76: 0.01 | I76: 100.00 | J76: 0.00 | K76: 0.76 | L76: 21.34 | M76: 3.44 | N76: 3.44 | O76: 0.63 | P76: №388 шк 2017 сб
A77: Хлеб ржаной | C77: 60 | D77: 3.96 | E77: 0.72 | F77: 23.76 | G77: 118.80 | H77: 0.10 | K77: 0.84 | L77: 17.40 | M77: 90.00 | N77: 28.20 | O77: 2.34 | P77: стр 144 табл. 6 Дели Плюс 2012г,
A78: Хлеб пшеничный | C78: 50 | D78: 3.80 | E78: 0.40 | F78: 24.60 | G78: 117.50 | H78: 0.06 | I78: 0.00 | J78: 0.00 | K78: 0.55 | L78: 10.00 | M78: 32.50 | N78: 7.00 | O78: 0.55 | P78: стр 134 табл. 6 Дели Плюс 2012г,
A79: Итого: | C79: 1031 | D79: =SUM(D72:D78) -> 30.04 | E79: =SUM(E72:E78) -> 30.88 | F79: 136.83 | G79: 948.32 | H79: 0.54 | I79: 150.86 | J79: 37.86 | K79: 7.58 | L79: 310.24 | M79: 571.03 | N79: 168.84 | O79: 7.59 | Q79: =G79/2720 -> 34.86% | R79: 40% (38-42)
A80: ВСЕГО: | C80: =C65+C69+C79 -> 1891 | D80: =D65+D69+D79 -> 53.64 | E80: =E65+E69+E79 -> 57.06 | F80: 238.34 | G80: 1765.80 | H80: 0.92 | I80: 166.39 | J80: 301.69 | K80: 11.96 | L80: 963.42 | M80: 1298.24 | N80: 287.67 | O80: 14.99 | Q80: =G80/2720 -> 64.92% | R80: 70% (66,5-73,5%)
A82: День 4 - ый
A83: Наименование блюд и | C83: Масса | D83: Пищевые вещества | G83: Энергетическая | H83: В1,мг | I83: С,мг | J83: A,мкг | K83: Е,мг | L83: Ca | M83: P | N83: Mg | O83: Fe | P83: Сборник
A84: продуктов | C84: порции | G84: ценность | P84: рецептур
D85: белки | E85: жиры | F85: угл-ды | G85: Ккал
B86: ЗАВТРАК
A87: Бутерброд с сыром,с маслом | C87: 30/15/10 | D87: 6.28 | E87: 12.11 | F87: 15.55 | G87: 196.10 | H87: 0.04 | I87: 0.11 | J87: 71.50 | K87: 0.68 | L87: 158.10 | M87: 112.50 | N87: 12.15 | O87: 0.49 | P87: №3 сб 2017 шк
A88: Каша "Дружба" молочная с маслом сливочным | C88: 220/5 | D88: 6.41 | E88: 5.10 | F88: 41.31 | G88: 230.02 | H88: 0.11 | I88: 1.06 | J88: 36.28 | K88: 0.13 | L88: 145.28 | M88: 170.59 | N88: 40.94 | O88: 0.88 | P88: ТТК №7Д
A89: Кофейный напиток с молоком | C89: 200 | D89: 3.17 | E89: 2.68 | F89: 5.97 | G89: 60.60 | H89: 0.04 | I89: 1.30 | J89: 20.00 | K89: 0.00 | L89: 125.48 | M89: 90.00 | N89: 14.00 | O89: 0.10 | P89: №379 шк 2017 сб
A90: Фрукты свежие (Яблоки) | C90: 120 | D90: 0.48 | E90: 0.48 | F90: 11.76 | G90: 56.40 | H90: 0.036 | I90: 12 | J90: 0 | K90: 0.24 | L90: 19.2 | M90: 13.2 | N90: 10.8 | O90: 2.64 | P90: №338 сб 2017 шк
A91: Батон высший сорт | C91: 30 | D91: 2.25 | E91: 0.87 | F91: 15.42 | G91: 78.60 | H91: 0.03 | I91: 0.00 | J91: 0.00 | K91: 0.51 | L91: 5.70 | M91: 19.50 | N91: 3.90 | O91: 0.36 | P91: стр 134 табл. 6 Дели Плюс 2012г,
A92: Итого: | C92: 630 | D92: =SUM(D87:D91) -> 18.58 | E92: =SUM(E87:E91) -> 21.24 | F92: 90.01 | G92: 621.72 | H92: 0.26 | I92: 14.46 | J92: 127.78 | K92: 1.56 | L92: 453.76 | M92: 405.79 | N92: 81.79 | O92: 4.47
B93: 2 - ой ЗАВТРАК
A94: Катык | C94: 200 | D94: 5.80 | E94: 5.00 | F94: 9.60 | G94: 107.00 | H94: 0.04 | I94: 0.06 | J94: 36.00 | K94: 0.00 | L94: 223.20 | M94: 165.60 | N94: 25.20 | O94: 0.18 | P94: №386 шк 2017 сб
A95: Итого: | C95: 200 | D95: =SUM(D94) -> 5.80 | E95: =SUM(E94) -> 5.00 | F95: 9.60 | G95: 107.00 | H95: 0.04 | I95: 0.06 | J95: 36.00 | K95: 0.00 | L95: 223.20 | M95: 165.60 | N95: 25.20 | O95: 0.18
A96: Итого за завтрак: | C96: =C92+C95 -> 830 | D96: 24.38 | E96: 26.24 | F96: 99.61 | G96: 728.72 | H96: 0.30 | I96: 14.52 | J96: 163.78 | K96: 1.56 | L96: 676.96 | M96: 571.39 | N96: 106.99 | O96: 4.65 | P96: 0.00 | Q96: =G96/2720 -> 26.79% | R96: 30% (28,5-31,5)
B97: ОБЕД
A98: Помидоры свежие порционно | C98: 100 | D98: 1.10 | E98: 0.20 | F98: 3.80 | G98: 24.00 | H98: 0.06 | I98: 25.00 | J98: 0.00 | K98: 0.70 | L98: 14.00 | M98: 26.00 | N98: 20.00 | O98: 0.90 | P98: №71 сб шк 2017
A99: Суп - лапша домашняя на курином бульоне,с мясом птицы | C99: 250/10 | D99: 5.20 | E99: 7.48 | F99: 12.65 | G99: 181.95 | H99: 0.05 | I99: 0.74 | J99: 18.32 | K99: 2.67 | L99: 33.91 | M99: 54.90 | N99: 12.70 | O99: 0.84 | P99: №113,105 шк 2017 сб
A100: Овощи тушеные с говяжьим фаршем | C100: 50/200 | D100: 15.01 | E100: 21.81 | F100: 44.85 | G100: 387.95 | H100: 0.05 | I100: 20.52 | J100: 44.25 | K100: 1.07 | L100: 72.31 | M100: 178.17 | N100: 41.23 | O100: 2.17 | P100: №143, 241 шк 2017 сб
A101: Нектар плодовый (разливной) | C101: 180 | D101: 0.90 | E101: 0.00 | F101: 18.18 | G101: 76.32 | H101: 0.0198 | I101: 3.6 | J101: 0 | K101: 0.18 | L101: 12.6 | M101: 12.6 | N101: 7.2 | O101: 2.52 | P101: №389 сб 2017 шк
A102: Хлеб ржаной | C102: 60 | D102: 3.96 | E102: 0.72 | F102: 23.76 | G102: 118.80 | H102: 0.10 | K102: 0.84 | L102: 17.40 | M102: 90.00 | N102: 28.20 | O102: 2.34 | P102: стр 144 табл. 6 Дели Плюс 2012г,
A103: Хлеб пшеничный | C103: 50 | D103: 3.80 | E103: 0.40 | F103: 24.60 | G103: 117.50 | H103: 0.06 | I103: 0.00 | J103: 0.00 | K103: 0.55 | L103: 10.00 | M103: 32.50 | N103: 7.00 | O103: 0.55 | P103: стр 134 табл. 6 Дели Плюс 2012г,
A104: Итого: | C104: 900 | D104: =SUM(D98:D103) -> 29.97 | E104: =SUM(E98:E103) -> 30.61 | F104: 127.84 | G104: 906.52 | H104: 0.34 | I104: 49.85 | J104: 62.57 | K104: 6.01 | L104: 160.22 | M104: 394.17 | N104: 116.33 | O104: 9.31 | Q104: =G104/2720 -> 33.33% | R104: 40% (38-42)
A105: ВСЕГО: | C105: =C92+C95+$C104 -> 1730 | D105: =D92+D95+$C104 -> 924.38 | E105: 926.24 | F105: 999.61 | G105: 1628.72 | H105: 900.30 | I105: 914.52 | J105: 1063.78 | K105: 901.56 | L105: 1576.96 | M105: 1471.39 | N105: 1006.99 | O105: 904.65 | Q105: =G105/2720 -> 59.88% | R105: 70% (66,5-73,5%)
A107: День 5 - ый
A108: Наименование блюд и | C108: Масса | D108: Пищевые вещества | G108: Энергетическая | H108: В1,мг | I108: С,мг | J108: A,мкг | K108: Е,мг | L108: Ca | M108: P | N108: Mg | O108: Fe | P108: Сборник
A109: продуктов | C109: порции | G109: ценность | P109: рецептур
D110: белки | E110: жиры | F110: угл-ды | G110: Ккал
B111: ЗАВТРАК
A112: Бутерброд с маслом | C112: 30/10 | D112: 2.33 | E112: 8.12 | F112: 15.55 | G112: 144.60 | H112: 0.03 | I112: 0.00 | J112: 40.00 | K112: 0.62 | L112: 8.10 | M112: 22.50 | N112: 3.90 | O112: 0.38 | P112: №1 сб 2017 шк
A113: Омлет натуральный | C113: 200 | D113: 16.13 | E113: 17.40 | F113: 18.90 | G113: 250.13 | H113: 0.14 | I113: 0.34 | J113: 432.76 | K113: 1.00 | L113: 137.45 | M113: 301.03 | N113: 21.52 | O113: 3.52 | P113: №210 сб 2017 шк
A114: Чай с молоком ,с сахаром | C114: 150/40/10 | D114: 1.46 | E114: 1.08 | F114: 11.96 | G114: 63.70 | H114: 0.02 | I114: 0.67 | J114: 8.00 | K114: 0.00 | L114: 63.02 | M114: 48.36 | N114: 12.20 | O114: 1.30 | P114: №378 СБ шк 2017
A115: Фрукты свежие (Яблоки) | C115: 120 | D115: 0.48 | E115: 0.48 | F115: 11.76 | G115: 56.40 | H115: 0.036 | I115: 12 | J115: 0 | K115: 0.24 | L115: 19.2 | M115: 13.2 | N115: 10.8 | O115: 2.64 | P115: №338 сб 2017 шк
A116: Батон высший сорт | C116: 30 | D116: 2.25 | E116: 0.87 | F116: 15.42 | G116: 78.60 | H116: 0.03 | I116: 0.00 | J116: 0.00 | K116: 0.51 | L116: 5.70 | M116: 19.50 | N116: 3.90 | O116: 0.36 | P116: стр 134 табл. 6 Дели Плюс 2012г,
A117: Итого: | C117: 590 | D117: =SUM(D112:D116) -> 22.65 | E117: =SUM(E112:E116) -> 27.95 | F117: 73.59 | G117: 593.43 | H117: 0.26 | I117: 13.01 | J117: 480.76 | K117: 2.37 | L117: 233.46 | M117: 404.59 | N117: 52.32 | O117: 8.20
B118: 2 - ой ЗАВТРАК
A119: Нектар плодовый (разливной) | C119: 180 | D119: 0.90 | E119: 0.00 | F119: 18.18 | G119: 76.32 | H119: 0.0198 | I119: 3.6 | J119: 0 | K119: 0.18 | L119: 12.6 | M119: 12.6 | N119: 7.2 | O119: 2.52 | P119: №389 сб 2017 шк
A120: Итого: | C120: 180 | D120: =D119 -> 0.90 | E120: =E119 -> 0.00 | F120: 18.18 | G120: 76.32 | H120: 0.02 | I120: 3.60 | J120: 0.00 | K120: 0.18 | L120: 12.60 | M120: 12.60 | N120: 7.20 | O120: 2.52
A121: Итого за завтрак: | C121: =C117+C120 -> 770 | D121: =D117+D120 -> 23.55 | E121: 27.95 | F121: 91.77 | G121: 669.75 | H121: 0.28 | I121: 16.61 | J121: 480.76 | K121: 2.55 | L121: 246.06 | M121: 417.19 | N121: 59.52 | O121: 10.72 | Q121: =G121/2720 -> 24.62% | R121: 30% (28,5-31,5)
B122: ОБЕД
A123: Салат из отварной свеклы с маслом растительным | C123: 100 | D123: 1.41 | E123: 6.01 | F123: 8.26 | G123: 92.80 | H123: 0.02 | I123: 6.65 | K123: 2.70 | L123: 35.46 | M123: 40.63 | N123: 20.70 | O123: 1.32 | P123: №52 сб 2017 шк
A124: Суп картофельный с мясными фрикадельками | C124: 250/11 | D124: 4.54 | E124: 8.12 | F124: 16.95 | G124: 135.57 | H124: 0.14 | I124: 12.06 | J124: 2.20 | K124: 1.35 | L124: 32.82 | M124: 100.57 | N124: 34.94 | O124: 1.37 | P124: №97 шк 2017 сб
A125: Биточки рыбные из минтая | C125: 100 | D125: 12.92 | E125: 8.20 | F125: 15.84 | G125: 190.00 | H125: 0.08 | I125: 0.66 | J125: 9.40 | K125: 5.02 | L125: 71.88 | M125: 185.46 | N125: 41.14 | O125: 1.46 | P125: № 234 шк 2017 сб
A126: Макаронные изделия отварные с маслом сливочным | C126: 180/5 | D126: 6.83 | E126: 4.43 | F126: 38.37 | G126: 220.56 | H126: 0.07 | I126: 0.00 | J126: 20.00 | K126: 0.98 | L126: 14.63 | M126: 46.10 | N126: 10.34 | O126: 1.03 | P126: №202 сб шк 2017
A127: Компот из свежих яблок | C127: 200 | D127: 0.16 | E127: 0.16 | F127: 27.88 | G127: 114.60 | H127: 0.01 | I127: 0.90 | J127: 0.00 | K127: 0.08 | L127: 14.18 | M127: 4.40 | N127: 5.14 | O127: 0.95 | P127: №342 сб 2017 шк
A128: Хлеб ржаной | C128: 60 | D128: 3.96 | E128: 0.72 | F128: 23.76 | G128: 118.80 | H128: 0.10 | K128: 0.84 | L128: 17.40 | M128: 90.00 | N128: 28.20 | O128: 2.34 | P128: стр 144 табл. 6 Дели Плюс 2012г,
A129: Хлеб пшеничный | C129: 50 | D129: 3.80 | E129: 0.40 | F129: 24.60 | G129: 117.50 | H129: 0.06 | I129: 0.00 | J129: 0.00 | K129: 0.55 | L129: 10.00 | M129: 32.50 | N129: 7.00 | O129: 0.55 | P129: стр 134 табл. 6 Дели Плюс 2012г,
A130: Итого: | C130: 956 | D130: =SUM(D123:D129) -> 33.62 | E130: =SUM(E123:E129) -> 28.04 | F130: 155.67 | G130: 989.83 | H130: 0.47 | I130: 20.27 | J130: 31.60 | K130: 11.51 | L130: 196.37 | M130: 499.66 | N130: 147.46 | O130: 9.03 | Q130: =G130/2720 -> 36.39% | R130: 40% (38-42)
A131: ВСЕГО: | C131: =C117+C120+C130 -> 1726 | D131: =D117+D120+D130 -> 57.17 | E131: =E117+E120+E130 -> 55.99 | F131: 247.44 | G131: 1659.58 | H131: 0.75 | I131: 36.88 | J131: 512.36 | K131: 14.06 | L131: 442.43 | M131: 916.86 | N131: 206.98 | O131: 19.75 | Q131: =G131/2720 -> 61.01% | R131: 70% (66,5-73,5%)
A134: День 6 - ый
A135: Наименование блюд и | C135: Масса | D135: Пищевые вещества | G135: Энергетическая | H135: В1,мг | I135: С,мг | J135: A,мкг | K135: Е,мг | L135: Ca | M135: P | N135: Mg | O135: Fe | P135: Сборник
A136: продуктов | C136: порции | G136: ценность | P136: рецептур
D137: белки | E137: жиры | F137: угл-ды | G137: Ккал
B138: ЗАВТРАК
A139: Бутерброд с маслом | C139: 30/10 | D139: 2.33 | E139: 8.12 | F139: 15.55 | G139: 144.60 | H139: 0.03 | I139: 0.00 | J139: 40.00 | K139: 0.62 | L139: 8.10 | M139: 22.50 | N139: 3.90 | O139: 0.38 | P139: №1 сб 2017 шк
A140: Каша кукурузная молочная | C140: 180 | D140: 6.90 | E140: 10.19 | F140: 31.91 | G140: 197.30 | H140: 0.08 | I140: 0.86 | J140: 13.32 | K140: 0.26 | L140: 122.46 | M140: 135.55 | N140: 28.45 | O140: 1.49 | P140: №174 сб 2017 шк
A141: Блины с маслом сливочным | C141: 45/5 | D141: 2.43 | E141: 0.95 | F141: 11.60 | G141: 99.14 | H141: 0.05 | I141: 0.00 | J141: 29.14 | K141: 0.73 | L141: 11.01 | M141: 29.90 | N141: 8.59 | O141: 0.50 | P141: ТТК №656 от 28.04.2020
A142: Какао с молоком | C142: 200 | D142: 4.08 | E142: 3.81 | F142: 7.60 | G142: 78.60 | H142: 0.06 | I142: 1.59 | J142: 24.40 | K142: 0.00 | L142: 151.92 | M142: 124.56 | N142: 21.34 | O142: 0.45 | P142: №382 сб шк 2017
A143: Фрукты свежие (Яблоки) | C143: 120 | D143: 0.48 | E143: 0.48 | F143: 11.76 | G143: 56.40 | H143: 0.036 | I143: 12 | J143: 0 | K143: 0.24 | L143: 19.2 | M143: 13.2 | N143: 10.8 | O143: 2.64 | P143: №338 сб 2017 шк
A144: Батон высший сорт | C144: 30 | D144: 2.25 | E144: 0.87 | F144: 15.42 | G144: 78.60 | H144: 0.03 | I144: 0.00 | J144: 0.00 | K144: 0.51 | L144: 5.70 | M144: 19.50 | N144: 3.90 | O144: 0.36 | P144: стр 134 табл. 6 Дели Плюс 2012г,
A145: Итого: | C145: 620 | D145: =SUM(D139:D144) -> 18.46 | E145: =SUM(E139:E144) -> 24.42 | F145: =SUM(F139:F144) -> 93.84 | G145: =SUM(G139:G144) -> 654.64 | H145: 0.29 | I145: 14.45 | J145: 106.86 | K145: 2.36 | L145: 318.39 | M145: 345.21 | N145: 76.98 | O145: 5.82
B146: 2 - ой ЗАВТРАК
A147: Ряженка | C147: 200 | D147: 5.80 | E147: 5.00 | F147: 8.40 | G147: 102.00 | H147: 0.04 | I147: 0.60 | J147: 28.00 | L147: 248.00 | M147: 184.00 | N147: 28.00 | O147: 0.20 | P147: №386 шк 2017 сб
A148: Итого: | C148: 200 | D148: =SUM(D147) -> 5.80 | E148: 5.00 | F148: 8.40 | G148: 102.00 | H148: 0.04 | I148: 0.60 | J148: 28.00 | K148: 0.00 | L148: 248.00 | M148: 184.00 | N148: 28.00 | O148: 0.20
A149: Итого за завтрак: | C149: =C145+C148 -> 820 | D149: =D145+D148 -> 24.26 | E149: 29.42 | F149: 102.24 | G149: 756.64 | H149: 0.33 | I149: 15.05 | J149: 134.86 | K149: 2.36 | L149: 566.39 | M149: 529.21 | N149: 104.98 | O149: 6.02 | Q149: =G149/2720 -> 27.82% | R149: 30% (28,5-31,5)
B150: ОБЕД
A151: Помидоры свежие порционно | C151: 100 | D151: 1.10 | E151: 0.20 | F151: 3.80 | G151: 24.00 | H151: 0.06 | I151: 25.00 | J151: 0.00 | K151: 0.70 | L151: 14.00 | M151: 26.00 | N151: 20.00 | O151: 0.90 | P151: №71 сб шк 2017
A152: Суп из овощей на курином бульоне, со сметаной | C152: 250/10 | D152: 3.85 | E152: 9.49 | F152: 9.51 | G152: 141.45 | H152: 0.08 | I152: 10.42 | J152: 10.00 | K152: 2.36 | L152: 43.65 | M152: 55.38 | N152: 21.65 | O152: 0.80 | P152: №99 шк 2017 сб
A153: Плов из отварных куриных грудок | C153: 250 | D153: 16.52 | E153: 19.80 | F153: 52.80 | G153: 443.33 | H153: 0.18 | I153: 8.17 | J153: 35.00 | K153: 0.68 | L153: 45.12 | M153: 236.67 | N153: 67.42 | O153: 2.33 | P153: №291 шк 2017 сб
A154: Нектар плодовый (разливной) | C154: 180 | D154: 0.90 | E154: 0.00 | F154: 18.18 | G154: 76 | H154: 0.0198 | I154: 3.6 | J154: 0 | K154: 0.18 | L154: 12.6 | M154: 12.6 | N154: 7.2 | O154: 2.52 | P154: №389 сб 2017 шк
A155: Хлеб ржаной | C155: 60 | D155: 3.96 | E155: 0.72 | F155: 23.76 | G155: 118.80 | H155: 0.10 | K155: 0.84 | L155: 17.40 | M155: 90.00 | N155: 28.20 | O155: 2.34 | P155: стр 144 табл. 6 Дели Плюс 2012г,
A156: Хлеб пшеничный | C156: 50 | D156: 3.80 | E156: 0.40 | F156: 24.60 | G156: 117.50 | H156: 0.06 | I156: 0.00 | J156: 0.00 | K156: 0.55 | L156: 10.00 | M156: 32.50 | N156: 7.00 | O156: 0.55 | P156: стр 134 табл. 6 Дели Плюс 2012г,
A157: Итого: | C157: 900 | D157: =SUM(D151:D156) -> 30.13 | E157: =SUM(E151:E156) -> 30.61 | F157: 132.65 | G157: 921.40 | H157: 0.50 | I157: 47.18 | J157: 45.00 | K157: 5.31 | L157: 142.77 | M157: 453.14 | N157: 151.47 | O157: 9.44 | Q157: =G157/2720 -> 33.88% | R157: 40% (38-42)
A158: ВСЕГО: | C158: =C145+C148+C157 -> 1720 | D158: =D145+D148+D157 -> 54.39 | E158: =E145+E148+E157 -> 60.03 | F158: 234.89 | G158: 1678.04 | H158: 0.82 | I158: 62.23 | J158: 179.86 | K158: 7.66 | L158: 709.16 | M158: 982.35 | N158: 256.44 | O158: 15.46 | Q158: =G158/2720 -> 61.69% | R158: 70% (66,5-73,5%)
A160: День 7 - ой
A161: Наименование блюд и | C161: Масса | D161: Пищевые вещества | G161: Энергетическая | H161: В1,мг | I161: С,мг | J161: A,мкг | K161: Е,мг | L161: Ca | M161: P | N161: Mg | O161: Fe | P161: Сборник
A162: продуктов | C162: порции | G162: ценность | P162: рецептур
D163: белки | E163: жиры | F163: угл-ды | G163: Ккал
B164: ЗАВТРАК
A165: Бутерброд с сыром,с маслом | C165: 30/15/10 | D165: 6.28 | E165: 12.11 | F165: 15.55 | G165: 196.10 | H165: 0.04 | I165: 0.11 | J165: 71.50 | K165: 0.68 | L165: 158.10 | M165: 112.50 | N165: 12.15 | O165: 0.49 | P165: №3 сб 2017 шк
A166: Сырники творожные с молоком сгущенным | C166: 180/30 | D166: 8.55 | E166: 5.23 | F166: 28.48 | G166: 208.20 | H166: 0.13 | I166: 0.77 | J166: 102.60 | K166: 5.15 | L166: 380.58 | M166: 475.79 | N166: 51.74 | O166: 1.28 | P166: №219 сб 2017 шк
A167: Чай с сахаром с лимоном | C167: 185/10/5 | D167: 0.13 | E167: 0.02 | F167: 10.20 | G167: 42.00 | H167: 0.12 | I167: 2.00 | J167: 51.70 | K167: 4.02 | L167: 34.97 | M167: 301.50 | N167: 52.71 | O167: 3.56 | P167: №377 СБ 2017,шк
A168: Фрукты свежие (Яблоки) | C168: 120 | D168: 0.48 | E168: 0.48 | F168: 11.76 | G168: 56.40 | H168: 0.036 | I168: 12 | J168: 0 | K168: 0.24 | L168: 19.2 | M168: 13.2 | N168: 10.8 | O168: 2.64 | P168: №338 сб 2017 шк
A169: Батон высший сорт | C169: 30 | D169: 2.25 | E169: 0.87 | F169: 15.42 | G169: 78.60 | H169: 0.03 | I169: 0.00 | J169: 0.00 | K169: 0.51 | L169: 5.70 | M169: 19.50 | N169: 3.90 | O169: 0.36 | P169: стр 134 табл. 6 Дели Плюс 2012г,
A170: Итого: | C170: 615 | D170: =SUM(D165:D169) -> 17.69 | E170: =SUM(E165:E169) -> 18.71 | F170: 81.41 | G170: 581.30 | H170: 0.35 | I170: 14.87 | J170: 225.80 | K170: 10.59 | L170: 598.55 | M170: 922.48 | N170: 131.30 | O170: 8.32
B171: 2 - ой ЗАВТРАК
A172: Молоко кипяченное | C172: 200 | D172: 5.80 | E172: 5.00 | F172: 9.60 | G172: 107.00 | H172: 0.08 | I172: 2.60 | J172: 40.00 | L172: 240.00 | M172: 180.00 | N172: 28.00 | O172: 0.20 | P172: №385 СБ шк 2017
A173: Итого: | C173: =C172 -> 200 | D173: =D172 -> 5.8 | E173: =E172 -> 5 | F173: =F172 -> 9.6 | G173: =G172 -> 107 | H173: =SUM(H172:H172) -> 0.08 | I173: 2.60 | J173: 40.00 | K173: 0.00 | L173: 240.00 | M173: 180.00 | N173: 28.00 | O173: 0.20
A174: Итого за завтрак: | C174: =C170+C173 -> 815 | D174: =D170+D173 -> 23.49 | E174: =E170+E173 -> 23.71 | F174: 91.01 | G174: 688.30 | H174: 0.43 | I174: 17.47 | J174: 265.80 | K174: 10.59 | L174: 838.55 | M174: 1102.48 | N174: 159.30 | O174: 8.52 | Q174: =G174/2720 -> 25.31% | R174: 30% (28,5-31,5)
B175: ОБЕД
A176: Огурцы соленые (доп гарнир) | C176: 50 | D176: 0.40 | E176: 0.05 | F176: 0.85 | G176: 5.00 | H176: 0.01 | I176: 1.75 | K176: 0.05 | L176: 11.50 | M176: 12.00 | N176: 7.00 | O176: 0.30 | P176: №70 СБ шк 2017
A177: Суп гороховый с мясными фрикадельками и гренками | C177: 250/11/10 | D177: 8.93 | E177: 6.72 | F177: 24.22 | G177: 206.64 | H177: 0.26 | I177: 5.88 | J177: 2.20 | K177: 2.70 | L177: 48.67 | M177: 124.65 | N177: 44.32 | O177: 2.54 | P177: №119,105 шк 2017 сб
A178: Котлета из говядины с маслом сливочным | C178: 100/3 | D178: 16.87 | E178: 15.56 | F178: 16.49 | G178: 244.78 | H178: 0.08 | I178: 1.20 | J178: 19.03 | K178: 2.90 | L178: 15.81 | M178: 167.71 | N178: 27.94 | O178: 2.60 | P178: №271 шк 2017 сб
A179: Картофель запеченный дольками | C179: 200 | D179: 5.44 | E179: 11.76 | F179: 42.16 | G179: 304.00 | H179: 0.28 | I179: 29.00 | J179: -40.00 | K179: 9.00 | L179: 28.50 | M179: 141.58 | N179: 53.72 | O179: 1.98 | P179: №314 сб 2017 шк
A180: Компот из сухофруктов | C180: 200 | D180: 0.66 | E180: 0.09 | F180: 22.03 | G180: 92.80 | H180: 0.02 | I180: 0.73 | J180: 0.00 | K180: 0.51 | L180: 32.18 | M180: 23.44 | N180: 17.46 | O180: 0.67 | P180: №349 сб шк 2017
A181: Хлеб ржаной | C181: 60 | D181: 3.96 | E181: 0.72 | F181: 23.76 | G181: 118.80 | H181: 0.10 | K181: 0.84 | L181: 17.40 | M181: 90.00 | N181: 28.20 | O181: 2.34 | P181: стр 144 табл. 6 Дели Плюс 2012г,
A182: Хлеб пшеничный | C182: 50 | D182: 3.80 | E182: 0.40 | F182: 24.60 | G182: 117.50 | H182: 0.06 | I182: 0.00 | J182: 0.00 | K182: 0.55 | L182: 10.00 | M182: 32.50 | N182: 7.00 | O182: 0.55 | P182: стр 134 табл. 6 Дели Плюс 2012г,
A183: Итого: | C183: 934 | D183: =SUM(D176:D182) -> 40.06 | E183: =SUM(E176:E182) -> 35.30 | F183: 154.12 | G183: 1089.52 | H183: 0.81 | I183: 38.56 | J183: -18.77 | K183: 16.55 | L183: 164.05 | M183: 591.88 | N183: 185.63 | O183: 10.97 | Q183: =G183/2720 -> 40.06% | R183: 40% (38-42)
A184: ВСЕГО: | C184: =C170+C173+C183 -> 1749 | D184: =D170+D173+D183 -> 63.55 | E184: =E170+E173+E183 -> 59.01 | F184: 245.13 | G184: 1777.82 | H184: 1.24 | I184: 56.03 | J184: 247.03 | K184: 27.14 | L184: 1002.60 | M184: 1694.36 | N184: 344.94 | O184: 19.50 | Q184: =G184/2720 -> 65.36% | R184: 70% (66,5-73,5%)
A186: День 8 - ой
A187: Наименование блюд и | C187: Масса | D187: Пищевые вещества | G187: Энергетическая | H187: В1,мг | I187: С,мг | J187: A,мкг | K187: Е,мг | L187: Ca | M187: P | N187: Mg | O187: Fe | P187: Сборник
A188: продуктов | C188: порции | G188: ценность | P188: рецептур
D189: белки | E189: жиры | F189: угл-ды | G189: Ккал
B190: ЗАВТРАК
A191: Бутерброд с маслом | C191: 30/10 | D191: 2.33 | E191: 8.12 | F191: 15.55 | G191: 144.60 | H191: 0.03 | I191: 0.00 | J191: 40.00 | K191: 0.62 | L191: 8.10 | M191: 22.50 | N191: 3.90 | O191: 0.38 | P191: №1 сб 2017 шк
A192: Каша пшеничная молочная с маслом сливочным | C192: 200/5 | D192: 9.89 | E192: 9.90 | F192: 30.95 | G192: 266.00 | H192: 0.14 | I192: 0.96 | J192: 34.80 | K192: 0.71 | L192: 145.57 | M192: 219.80 | N192: 44.33 | O192: 2.33 | P192: №173 сб шк 2017
A193: Яйцо отварное | C193: 40 | D193: 5.08 | E193: 4.60 | F193: 0.28 | G193: 62.80 | H193: 0.03 | J193: 100.00 | K193: 0.24 | L193: 22.00 | M193: 76.80 | N193: 4.80 | O193: 1.00 | P193: №209 сб шк 2017
A194: Кофейный напиток с молоком | C194: 200 | D194: 3.17 | E194: 2.68 | F194: 5.97 | G194: 60.60 | H194: 0.04 | I194: 1.30 | J194: 20.00 | K194: 0.00 | L194: 125.48 | M194: 90.00 | N194: 14.00 | O194: 0.10 | P194: №379 шк 2017 сб
A195: Фрукты свежие (Яблоки) | C195: 120 | D195: 0.48 | E195: 0.48 | F195: 11.76 | G195: 56.40 | H195: 0.036 | I195: 12 | J195: 0 | K195: 0.24 | L195: 19.2 | M195: 13.2 | N195: 10.8 | O195: 2.64 | P195: №338 сб 2017 шк
A196: Батон высший сорт | C196: 30 | D196: 2.25 | E196: 0.87 | F196: 15.42 | G196: 78.60 | H196: 0.03 | I196: 0.00 | J196: 0.00 | K196: 0.51 | L196: 5.70 | M196: 19.50 | N196: 3.90 | O196: 0.36 | P196: стр 134 табл. 6 Дели Плюс 2012г,
A197: Итого: | C197: 635 | D197: =SUM(D191:D196) -> 23.20 | E197: =SUM(E191:E196) -> 26.65 | F197: 79.93 | G197: 669.00 | H197: 0.32 | I197: 14.26 | J197: 194.80 | K197: 2.32 | L197: 326.05 | M197: 441.80 | N197: 81.73 | O197: 6.81
B198: 2 - ой ЗАВТРАК
A199: Нектар плодовый (разливной) | C199: 180 | D199: 0.90 | E199: 0.00 | F199: 18.18 | G199: 76 | H199: 0.0198 | I199: 3.6 | J199: 0 | K199: 0.18 | L199: 12.6 | M199: 12.6 | N199: 7.2 | O199: 2.52 | P199: №389 сб 2017 шк
A200: Итого: | C200: =C199 -> 180 | D200: =D199 -> 0.9 | E200: 0 | F200: 18.18 | G200: 76.32 | H200: =SUM(H199:H199) -> 0.02 | I200: 3.60 | J200: 0.00 | K200: 0.18 | L200: 12.60 | M200: 12.60 | N200: 7.20 | O200: 2.52
A201: Итого за завтрак: | C201: =C197+C200 -> 815 | D201: =D197+D200 -> 24.10 | E201: 26.65 | F201: 98.11 | G201: 745.32 | H201: 0.34 | I201: 17.86 | J201: 194.80 | K201: 2.50 | L201: 338.65 | M201: 454.40 | N201: 88.93 | O201: 9.33 | Q201: =G201/2720 -> 27.40% | R201: 30% (28,5-31,5)
B202: ОБЕД
A203: Салат из зеленого горошка к/с | C203: 100 | D203: 2.98 | E203: 5.19 | F203: 6.25 | G203: 83.60 | H203: 0.11 | I203: 11.00 | K203: 2.41 | L203: 21.45 | M203: 59.95 | N203: 20.80 | O203: 0.68 | P203: №10 сб 2016 дошк
A204: Суп крестьянский с пшенной крупой | C204: 250 | D204: 4.48 | E204: 12.92 | F204: 6.09 | G204: 156.25 | H204: 0.04 | I204: 9.88 | J204: 0.00 | K204: 2.30 | L204: 35.88 | M204: 33.58 | N204: 14.18 | O204: 0.58 | P204: №98 сб 2017 шк
A205: Филе куриной грудки тушеное с овощами | C205: 50/200 | D205: 14.98 | E205: 11.46 | F205: 48.88 | G205: 419.38 | H205: 0.26 | I205: 16.24 | J205: 45.90 | K205: 1.80 | L205: 91.28 | M205: 197.92 | N205: 56.78 | O205: 5.14 | P205: ТТК
A206: Компот из свежих фруктов | C206: 200 | D206: 0.16 | E206: 0.12 | F206: 18.10 | G206: 74.60 | H206: 0.01 | I206: 0.90 | J206: 0.00 | K206: 0.16 | L206: 15.08 | M206: 6.40 | N206: 6.34 | O206: 0.96 | P206: №342 сб 2017 шк
A207: Хлеб ржаной | C207: 60 | D207: 3.96 | E207: 0.72 | F207: 23.76 | G207: 118.80 | H207: 0.10 | K207: 0.84 | L207: 17.40 | M207: 90.00 | N207: 28.20 | O207: 2.34 | P207: стр 144 табл. 6 Дели Плюс 2012г,
A208: Хлеб пшеничный | C208: 50 | D208: 3.80 | E208: 0.40 | F208: 24.60 | G208: 117.50 | H208: 0.06 | I208: 0.00 | J208: 0.00 | K208: 0.55 | L208: 10.00 | M208: 32.50 | N208: 7.00 | O208: 0.55 | P208: стр 134 табл. 6 Дели Плюс 2012г,
A209: Итого: | C209: 910 | D209: =SUM(D203:D208) -> 30.36 | E209: =SUM(E203:E208) -> 30.81 | F209: 127.68 | G209: 970.13 | H209: 0.57 | I209: 38.02 | J209: 45.90 | K209: 8.06 | L209: 191.09 | M209: 420.35 | N209: 133.30 | O209: 10.25 | Q209: =G209/2720 -> 35.67% | R209: 40% (38-42)
... 335 more rows

Sheet ЛТО 18 дн
A2: День 1 - ый
A3: Наименование блюд и | C3: Масса | D3: Пищевые вещества | G3: Энергетическая | H3: В1,мг | I3: С,мг | J3: A,мкг | K3: Е,мг | L3: Ca | M3: P | N3: Mg | O3: Fe | P3: Сборник
A4: продуктов | C4: порции | G4: ценность | P4: рецептур
D5: белки | E5: жиры | F5: угл-ды | G5: Ккал
B6: ЗАВТРАК
A7: Бутерброд с маслом | C7: 30/10 | D7: 2.33 | E7: 8.12 | F7: 15.55 | G7: 144.60 | H7: 0.03 | I7: 0.00 | J7: 40.00 | K7: 0.62 | L7: 8.10 | M7: 22.50 | N7: 3.90 | O7: 0.38 | P7: №1 сб 2017 шк
A8: Каша пшённая молочная с маслом сливочным | C8: 200/5 | D8: 9.47 | E8: 7.90 | F8: 39.00 | G8: 257.90 | H8: 0.19 | I8: 1.17 | J8: 38.00 | K8: 0.15 | L8: 136.90 | M8: 182.87 | N8: 47.60 | O8: 1.22 | P8: №173 СБ шк 2017
A9: Чай с молоком, с сахаром | C9: 150/40/10 | D9: 1.46 | E9: 1.08 | F9: 11.96 | G9: 63.70 | H9: 0.02 | I9: 0.67 | J9: 8.00 | K9: 0.00 | L9: 63.02 | M9: 48.36 | N9: 12.20 | O9: 1.30 | P9: №378 СБ шк 2017
A10: Фрукты свежие (Яблоки) | C10: 120 | D10: 0.48 | E10: 0.48 | F10: 11.76 | G10: 56.40 | H10: 0.036 | I10: 12 | J10: 0 | K10: 0.24 | L10: 19.2 | M10: 13.2 | N10: 10.8 | O10: 2.64 | P10: №338 сб 2017 шк
A11: Батон высший сорт | C11: 30 | D11: 2.25 | E11: 0.87 | F11: 15.42 | G11: 78.60 | H11: 0.03 | I11: 0.00 | J11: 0.00 | K11: 0.51 | L11: 5.70 | M11: 19.50 | N11: 3.90 | O11: 0.36 | P11: стр 134 табл. 6 Дели Плюс 2012г,
A12: Итого: | C12: 595 | D12: =D7+D8+D9+D10+D11 -> 15.99 | E12: =E7+E8+E9+E10+E11 -> 18.45 | F12: 93.69 | G12: 601.20 | H12: 0.31 | I12: 13.84 | J12: 86.00 | K12: 1.52 | L12: 232.92 | M12: 286.43 | N12: 78.40 | O12: 5.90
B13: 2 - ой ЗАВТРАК
A14: Печенье | C14: 35 | D14: 2.59 | E14: 3.29 | F14: 25.59 | G14: 142.45 | H14: 0.05 | K14: 1.30 | L14: 9.10 | M14: 29.40 | N14: 10.50 | O14: 0.49
A15: Молоко кипяченное | C15: 200 | D15: 5.80 | E15: 5.00 | F15: 9.60 | G15: 107.00 | H15: 0.08 | I15: 2.60 | J15: 40.00 | L15: 240.00 | M15: 180.00 | N15: 28.00 | O15: 0.20 | P15: №385 СБ шк 2017
A16: Итого: | C16: 235 | D16: =SUM(D14:D15) -> 8.39 | E16: =SUM(E14:E15) -> 8.29 | F16: 35.19 | G16: 249.45 | H16: 0.13 | I16: 2.60 | J16: 40.00 | K16: 1.30 | L16: 249.10 | M16: 209.40 | N16: 38.50 | O16: 0.69
A17: Итого за завтрак: | C17: =C12+C16 -> 830 | D17: =D12+D16 -> 24.38 | E17: =E12+E16 -> 26.74 | F17: 128.88 | G17: 850.65 | H17: 0.44 | I17: 16.44 | J17: 126.00 | K17: 2.82 | L17: 482.02 | M17: 495.83 | N17: 116.90 | O17: 6.59 | Q17: =G17/2720 -> 31.27% | R17: 30% (28,5-31,5)
B18: ОБЕД
A19: Помидоры свежие порционно | C19: 100 | D19: 1.10 | E19: 0.20 | F19: 3.80 | G19: 24.00 | H19: 0.06 | I19: 25.00 | J19: 0.00 | K19: 0.70 | L19: 14.00 | M19: 26.00 | N19: 20.00 | O19: 0.90 | P19: №71 сб шк 2017
A20: Щи из свежей капусты с картофелем,со сметаной | C20: 250/10 | D20: 2.29 | E20: 6.45 | F20: 18.26 | G20: 105.95 | H20: 0.06 | I20: 15.82 | J20: 10.00 | K20: 2.38 | L20: 58.05 | M20: 55.10 | N20: 23.03 | O20: 0.85 | P20: №88,105 сб 2017шк
A21: Жаркое по - домашнему с куриной грудкой | C21: 50/200 | D21: 17.91 | E21: 30.10 | F21: 38.90 | G21: 495.00 | H21: 0.14 | I21: 11.24 | J21: 36.38 | K21: 4.85 | L21: 69.63 | M21: 239.25 | N21: 54.15 | O21: 5.22 | P21: ТТК
A22: Нектар плодовый (разливной) | C22: 180 | D22: 0.90 | E22: 0.00 | F22: 18.18 | G22: 76 | H22: 0.0198 | I22: 3.6 | J22: 0 | K22: 0.18 | L22: 12.6 | M22: 12.6 | N22: 7.2 | O22: 2.52 | P22: №389 сб 2017 шк
A23: Хлеб ржаной | C23: 60 | D23: 3.96 | E23: 0.72 | F23: 23.76 | G23: 119 | H23: 0.102 | K23: 0.84 | L23: 17.4 | M23: 90 | N23: 28.2 | O23: 2.34 | P23: стр 144 табл. 6 Дели Плюс 2012г,
A24: Хлеб пшеничный | C24: 50 | D24: 3.8 | E24: 0.4 | F24: 24.6 | G24: 118 | H24: 0.055 | I24: 0 | J24: 0 | K24: 0.55 | L24: 10 | M24: 32.5 | N24: 7 | O24: 0.55 | P24: стр 134 табл. 6 Дели Плюс 2012г,
A25: Итого: | C25: 900 | D25: =SUM(D19:D24) -> 29.96 | E25: =SUM(E19:E24) -> 37.87 | F25: 127.50 | G25: 937.57 | H25: 0.44 | I25: 55.66 | J25: 46.38 | K25: 9.50 | L25: 181.68 | M25: 455.45 | N25: 139.57 | O25: 12.37 | Q25: =G25/2720 -> 34.47% | R25: 40% (38-42)
A26: ВСЕГО: | C26: =C12+C16+C25 -> 1730 | D26: =D12+D16+D25 -> 54.34 | E26: 64.61 | F26: 256.38 | G26: 1788.22 | H26: 0.87 | I26: 72.10 | J26: 172.38 | K26: 12.32 | L26: 663.69 | M26: 951.28 | N26: 256.47 | O26: 18.96 | Q26: =G26/2720 -> 65.74% | R26: 70% (66,5-73,5%)
A28: День 2- ой
A29: Наименование блюд и | C29: Масса | D29: Пищевые вещества | G29: Энергетическая | H29: В1,мг | I29: С,мг | J29: A,мкг | K29: Е,мг | L29: Ca | M29: P | N29: Mg | O29: Fe | P29: Сборник
A30: продуктов | C30: порции | G30: ценность | P30: рецептур
D31: белки | E31: жиры | F31: угл-ды | G31: Ккал
B32: ЗАВТРАК
A33: Бутерброд с сыром,с маслом | C33: 30/15/10 | D33: 6.28 | E33: 12.11 | F33: 15.55 | G33: 196.10 | H33: 0.04 | I33: 0.11 | J33: 71.50 | K33: 0.68 | L33: 158.10 | M33: 112.50 | N33: 12.15 | O33: 0.49 | P33: №3 сб 2017 шк
A34: Каша геркулесовая молочная с маслом сливочным | C34: 200/5 | D34: 5.28 | E34: 6.20 | F34: 37.58 | G34: 203.67 | H34: 0.18 | I34: 0.96 | J34: 37.02 | K34: 0.57 | L34: 148.55 | M34: 233.65 | N34: 70.82 | O34: 1.72 | P34: №173 сб шк 2017
A35: Яйцо отварное | C35: 40 | D35: 5.08 | E35: 4.60 | F35: 0.28 | G35: 62.80 | H35: 0.03 | J35: 100.00 | K35: 0.24 | L35: 22.00 | M35: 76.80 | N35: 4.80 | O35: 1.00 | P35: №209 сб шк2017
A36: Какао с молоком | C36: 200 | D36: 4.08 | E36: 3.81 | F36: 7.60 | G36: 78.60 | H36: 0.06 | I36: 1.59 | J36: 24.40 | K36: 0.00 | L36: 151.92 | M36: 124.56 | N36: 21.34 | O36: 0.45 | P36: №382 сб шк 2017
A37: Батон высший сорт | C37: 50 | D37: 3.75 | E37: 1.45 | F37: 25.70 | G37: 131.00 | H37: 0.06 | I37: 0.00 | J37: 0.00 | K37: 0.85 | L37: 9.50 | M37: 32.50 | N37: 6.50 | O37: 0.60 | P37: стр 134 табл. 6 Дели Плюс 2012г,
A38: Итого: | C38: 550 | D38: =SUM(D33:D37) -> 24.46 | E38: =SUM(E33:E37) -> 28.17 | F38: 86.71 | G38: 672.17 | H38: 0.36 | I38: 2.65 | J38: 232.92 | K38: 2.34 | L38: 490.07 | M38: 580.01 | N38: 115.61 | O38: 4.26
B39: 2 - ой ЗАВТРАК
A40: Нектар плодовый (разливной) | C40: 180 | D40: 0.90 | E40: 0.00 | F40: 18.18 | G40: 76.32 | H40: 0.0198 | I40: 3.6 | J40: 0 | K40: 0.18 | L40: 12.6 | M40: 12.6 | N40: 7.2 | O40: 2.52 | P40: №389 сб 2017 шк
A41: Итого: | C41: 180 | D41: =D40 -> 0.90 | E41: =E40 -> 0.00 | F41: =F40 -> 18.18 | G41: =G40 -> 76.32 | H41: =H40 -> 0.02 | I41: =I40 -> 3.60 | J41: 0.00 | K41: 0.18 | L41: 12.60 | M41: 12.60 | N41: 7.20 | O41: 2.52
A42: Итого за завтрак: | C42: =C38+C41 -> 730 | D42: =D38+D41 -> 25.36 | E42: =E38+E41 -> 28.17 | F42: 104.89 | G42: 748.49 | H42: 0.38 | I42: 6.25 | J42: 232.92 | K42: 2.52 | L42: 502.67 | M42: 592.61 | N42: 122.81 | O42: 6.78 | Q42: =G42/2720 -> 27.52% | R42: 30% (28,5-31,5)
B43: ОБЕД
A44: Огурцы свежие | C44: 100 | D44: 0.80 | E44: 0.10 | F44: 2.50 | G44: 14.00 | H44: 0.03 | I44: 10.00 | J44: 0.00 | K44: 0.10 | L44: 23.00 | M44: 42.00 | N44: 14.00 | O44: 0.60 | P44: №71 сб шк 2017
A45: Суп картофельный с крупой на мясном бульоне | C45: 250 | D45: 1.97 | E45: 6.37 | F45: 12.11 | G45: 105.75 | H45: 0.09 | I45: 8.25 | J45: 0.00 | K45: 1.23 | L45: 26.70 | M45: 55.98 | N45: 22.78 | O45: 0.88 | P45: №101 сб шк 2017
A46: Гуляш из отварной говядины | C46: 50/50 | D46: 14.50 | E46: 22.19 | F46: 4.89 | G46: 271.00 | H46: 0.03 | I46: 0.92 | K46: 2.61 | L46: 21.81 | M46: 154.15 | N46: 22.03 | O46: 3.06 | P46: №260 сб шк 2017
A47: Макаронные изделия отварные | C47: 180 | D47: 6.79 | E47: 0.80 | F47: 38.30 | G47: 187.56 | H47: 0.07 | K47: 0.93 | L47: 13.43 | M47: 44.60 | N47: 10.34 | O47: 1.02 | P47: №203 сб шк 2017
A48: Компот из сухофруктов | C48: 200 | D48: 0.66 | E48: 0.09 | F48: 22.03 | G48: 92.80 | H48: 0.02 | I48: 0.73 | J48: 0.00 | K48: 0.51 | L48: 32.18 | M48: 23.44 | N48: 17.46 | O48: 0.67 | P48: №349 сб шк 2017
A49: Хлеб ржаной | C49: 60 | D49: 3.96 | E49: 0.72 | F49: 23.76 | G49: 118.80 | H49: 0.10 | K49: 0.84 | L49: 17.40 | M49: 90.00 | N49: 28.20 | O49: 2.34 | P49: стр 144 табл. 6 Дели Плюс 2012г,
A50: Хлеб пшеничный | C50: 50 | D50: 3.8 | E50: 0.4 | F50: 24.6 | G50: 118 | H50: 0.055 | I50: 0 | J50: 0 | K50: 0.55 | L50: 10 | M50: 32.5 | N50: 7 | O50: 0.55 | P50: стр 134 табл. 6 Дели Плюс 2012г,
A51: Итого: | C51: 940 | D51: =SUM(D44:D50) -> 32.49 | E51: =SUM(E44:E50) -> 30.67 | F51: 128.20 | G51: 907.41 | H51: 0.39 | I51: 19.90 | J51: 0.00 | K51: 6.76 | L51: 144.52 | M51: 442.67 | N51: 121.81 | O51: 9.12 | Q51: =G51/2720 -> 33.36% | R51: 40% (38-42)
A52: ВСЕГО: | C52: =C38+C41+C51 -> 1670 | D52: =D38+D41+D51 -> 57.85 | E52: 58.84 | F52: 233.09 | G52: 1655.90 | H52: 0.77 | I52: 26.15 | J52: 232.92 | K52: 9.28 | L52: 647.19 | M52: 1035.27 | N52: 244.62 | O52: 15.89 | Q52: =G52/2720 -> 60.88% | R52: 70% (66,5-73,5%)
A54: День 3 - ий
A55: Наименование блюд и | C55: Масса | D55: Пищевые вещества | G55: Энергетическая | H55: В1,мг | I55: С,мг | J55: A,мкг | K55: Е,мг | L55: Ca | M55: P | N55: Mg | O55: Fe | P55: Сборник
A56: продуктов | C56: порции | G56: ценность | P56: рецептур
D57: белки | E57: жиры | F57: угл-ды | G57: Ккал
B58: ЗАВТРАК
A59: Бутерброд с маслом | C59: 30/10 | D59: 2.33 | E59: 8.12 | F59: 15.55 | G59: 144.60 | H59: 0.03 | I59: 0.00 | J59: 40.00 | K59: 0.62 | L59: 8.10 | M59: 22.50 | N59: 3.90 | O59: 0.38 | P59: №1 сб 2017 шк
A60: Запеканка творожная с молоком сгущенным | C60: 170/30 | D60: 8.10 | E60: 7.85 | F60: 14.88 | G60: 205.88 | H60: 0.12 | I60: 0.74 | J60: 154.70 | K60: 0.99 | L60: 345.03 | M60: 425.05 | N60: 50.29 | O60: 1.45 | P60: №223 СБ 2017 шк
A61: Блины с маслом сливочным | C61: 45/5 | D61: 2.43 | E61: 0.95 | F61: 11.60 | G61: 99.14 | H61: 0.05 | I61: 0.00 | J61: 29.14 | K61: 0.73 | L61: 11.01 | M61: 29.90 | N61: 8.59 | O61: 0.50 | P61: ТТК №656 от 28.04.2020
A62: Чай с сахаром | C62: 190/10 | D62: 0.38 | E62: 0.10 | F62: 10.06 | G62: 42.66 | H62: 0.0019 | I62: 0.19 | J62: 0 | K62: 0 | L62: 18.939 | M62: 15.656 | N62: 8.36 | O62: 1.588 | P62: №376 сб 2017 шк
A63: Фрукты свежие (Яблоки) | C63: 120 | D63: 0.48 | E63: 0.48 | F63: 11.76 | G63: 56.40 | H63: 0.036 | I63: 12 | J63: 0 | K63: 0.24 | L63: 19.2 | M63: 13.2 | N63: 10.8 | O63: 2.64 | P63: №338 сб 2017 шк
A64: Батон высший сорт | C64: 30 | D64: 2.25 | E64: 0.87 | F64: 15.42 | G64: 78.60 | H64: 0.03 | I64: 0.00 | J64: 0.00 | K64: 0.51 | L64: 5.70 | M64: 19.50 | N64: 3.90 | O64: 0.36 | P64: стр 134 табл. 6 Дели Плюс 2012г,
A65: Итого: | C65: 640 | D65: =SUM(D59:D64) -> 15.97 | E65: =SUM(E59:E64) -> 18.37 | F65: 79.27 | G65: =SUM(G59:G64) -> 627.28 | H65: 0.28 | I65: 12.93 | J65: 223.84 | K65: 3.08 | L65: 407.98 | M65: 525.81 | N65: 85.83 | O65: 6.92
B66: 2 - ой ЗАВТРАК
A67: Крекер | C67: 20 | D67: 1.84 | E67: 2.82 | F67: 12.64 | G67: 83.20 | H67: 0.03 | I67: 0.00 | K67: 1.30 | L67: 5.20 | M67: 21.40 | N67: 5.00 | O67: 0.28
A68: Молоко кипяченное | C68: 200 | D68: 5.80 | E68: 5.00 | F68: 9.60 | G68: 107.00 | H68: 0.08 | I68: 2.60 | J68: 40.00 | L68: 240.00 | M68: 180.00 | N68: 28.00 | O68: 0.20 | P68: №385 СБ шк 2017
A69: Итого: | C69: 220 | D69: =SUM(D67:D68) -> 7.64 | E69: =SUM(E67:E68) -> 7.82 | F69: 22.24 | G69: 190.20 | H69: 0.11 | I69: 2.60 | J69: 40.00 | K69: 1.30 | L69: 245.20 | M69: 201.40 | N69: 33.00 | O69: 0.48
A70: Итого за завтрак: | C70: =C65+C69 -> 860 | D70: =D65+D69 -> 23.61 | E70: =E65+E69 -> 26.19 | F70: 101.51 | G70: =G65+G69 -> 817.48 | H70: 0.38 | I70: 15.53 | J70: 263.84 | K70: 4.38 | L70: 653.18 | M70: 727.21 | N70: 118.83 | O70: 7.40 | Q70: =G70/2720 -> 30.05% | R70: 30% (28,5-31,5)
B71: ОБЕД
A72: Огурцы свежие | C72: 100 | D72: 0.80 | E72: 0.10 | F72: 2.50 | G72: 14.00 | H72: 0.03 | I72: 10.00 | J72: 0.00 | K72: 0.10 | L72: 23.00 | M72: 42.00 | N72: 14.00 | O72: 0.60 | P72: №71 сб шк 2017
A73: Рассольник ленинградский с мясными фрикадельками,со сметаной | C73: 250/11/10 | D73: 5.67 | E73: 9.88 | F73: 12.42 | G73: 145.02 | H73: 0.10 | I73: 8.47 | J73: 12.20 | K73: 2.45 | L73: 40.32 | M73: 85.67 | N73: 28.62 | O73: 1.12 | P73: №96,сб 2017 шк
A74: Рыба тушеная с овощами | C74: 80/40 | D74: 10.43 | E74: 11.62 | F74: 9.04 | G74: 180.33 | H74: 0.04 | I74: 3.05 | J74: 25.66 | K74: 2.06 | L74: 131.26 | M74: 189.75 | N74: 44.32 | O74: 0.75 | P74: №229 сб 2017 шк
A75: Пюре картофельное с капустой тушеной (доп.гарнир) | C75: 200/30 | D75: 4.698 | E75: 7.88 | F75: 43.75 | G75: 284.47 | H75: 0.20 | I75: 29.34 | J75: 0.00 | K75: 0.83 | L75: 66.93 | M75: 127.67 | N75: 43.26 | O75: 1.60 | P75: №312, 139 шк 2017 сб
A76: Напиток из шиповника | C76: 200 | D76: 0.68 | E76: 0.28 | F76: 20.76 | G76: 88.20 | H76: 0.01 | I76: 100.00 | J76: 0.00 | K76: 0.76 | L76: 21.34 | M76: 3.44 | N76: 3.44 | O76: 0.63 | P76: №388 шк 2017 сб
A77: Хлеб ржаной | C77: 60 | D77: 3.96 | E77: 0.72 | F77: 23.76 | G77: 118.80 | H77: 0.10 | K77: 0.84 | L77: 17.40 | M77: 90.00 | N77: 28.20 | O77: 2.34 | P77: стр 144 табл. 6 Дели Плюс 2012г,
A78: Хлеб пшеничный | C78: 50 | D78: 3.80 | E78: 0.40 | F78: 24.60 | G78: 117.50 | H78: 0.06 | I78: 0.00 | J78: 0.00 | K78: 0.55 | L78: 10.00 | M78: 32.50 | N78: 7.00 | O78: 0.55 | P78: стр 134 табл. 6 Дели Плюс 2012г,
A79: Итого: | C79: 1031 | D79: =SUM(D72:D78) -> 30.04 | E79: =SUM(E72:E78) -> 30.88 | F79: 136.83 | G79: 948.32 | H79: 0.54 | I79: 150.86 | J79: 37.86 | K79: 7.58 | L79: 310.24 | M79: 571.03 | N79: 168.84 | O79: 7.59 | Q79: =G79/2720 -> 34.86% | R79: 40% (38-42)
A80: ВСЕГО: | C80: =C65+C69+C79 -> 1891 | D80: =D65+D69+D79 -> 53.64 | E80: =E65+E69+E79 -> 57.06 | F80: 238.34 | G80: 1765.80 | H80: 0.92 | I80: 166.39 | J80: 301.69 | K80: 11.96 | L80: 963.42 | M80: 1298.24 | N80: 287.67 | O80: 14.99 | Q80: =G80/2720 -> 64.92% | R80: 70% (66,5-73,5%)
A82: День 4 - ый
A83: Наименование блюд и | C83: Масса | D83: Пищевые вещества | G83: Энергетическая | H83: В1,мг | I83: С,мг | J83: A,мкг | K83: Е,мг | L83: Ca | M83: P | N83: Mg | O83: Fe | P83: Сборник
A84: продуктов | C84: порции | G84: ценность | P84: рецептур
D85: белки | E85: жиры | F85: угл-ды | G85: Ккал
B86: ЗАВТРАК
A87: Бутерброд с сыром,с маслом | C87: 30/15/10 | D87: 6.28 | E87: 12.11 | F87: 15.55 | G87: 196.10 | H87: 0.04 | I87: 0.11 | J87: 71.50 | K87: 0.68 | L87: 158.10 | M87: 112.50 | N87: 12.15 | O87: 0.49 | P87: №3 сб 2017 шк
A88: Каша "Дружба" молочная с маслом сливочным | C88: 220/5 | D88: 6.41 | E88: 5.10 | F88: 41.31 | G88: 230.02 | H88: 0.11 | I88: 1.06 | J88: 36.28 | K88: 0.13 | L88: 145.28 | M88: 170.59 | N88: 40.94 | O88: 0.88 | P88: ТТК №7Д
A89: Кофейный напиток с молоком | C89: 200 | D89: 3.17 | E89: 2.68 | F89: 5.97 | G89: 60.60 | H89: 0.04 | I89: 1.30 | J89: 20.00 | K89: 0.00 | L89: 125.48 | M89: 90.00 | N89: 14.00 | O89: 0.10 | P89: №379 шк 2017 сб
A90: Фрукты свежие (Яблоки) | C90: 120 | D90: 0.48 | E90: 0.48 | F90: 11.76 | G90: 56.40 | H90: 0.036 | I90: 12 | J90: 0 | K90: 0.24 | L90: 19.2 | M90: 13.2 | N90: 10.8 | O90: 2.64 | P90: №338 сб 2017 шк
A91: Батон высший сорт | C91: 30 | D91: 2.25 | E91: 0.87 | F91: 15.42 | G91: 78.60 | H91: 0.03 | I91: 0.00 | J91: 0.00 | K91: 0.51 | L91: 5.70 | M91: 19.50 | N91: 3.90 | O91: 0.36 | P91: стр 134 табл. 6 Дели Плюс 2012г,
A92: Итого: | C92: 630 | D92: =SUM(D87:D91) -> 18.58 | E92: =SUM(E87:E91) -> 21.24 | F92: 90.01 | G92: 621.72 | H92: 0.26 | I92: 14.46 | J92: 127.78 | K92: 1.56 | L92: 453.76 | M92: 405.79 | N92: 81.79 | O92: 4.47
B93: 2 - ой ЗАВТРАК
A94: Катык | C94: 200 | D94: 5.80 | E94: 5.00 | F94: 9.60 | G94: 107.00 | H94: 0.04 | I94: 0.06 | J94: 36.00 | K94: 0.00 | L94: 223.20 | M94: 165.60 | N94: 25.20 | O94: 0.18 | P94: №386 шк 2017 сб
A95: Итого: | C95: 200 | D95: =SUM(D94) -> 5.80 | E95: =SUM(E94) -> 5.00 | F95: 9.60 | G95: 107.00 | H95: 0.04 | I95: 0.06 | J95: 36.00 | K95: 0.00 | L95: 223.20 | M95: 165.60 | N95: 25.20 | O95: 0.18
A96: Итого за завтрак: | C96: =C92+C95 -> 830 | D96: 24.38 | E96: 26.24 | F96: 99.61 | G96: 728.72 | H96: 0.30 | I96: 14.52 | J96: 163.78 | K96: 1.56 | L96: 676.96 | M96: 571.39 | N96: 106.99 | O96: 4.65 | P96: 0.00 | Q96: =G96/2720 -> 26.79% | R96: 30% (28,5-31,5)
B97: ОБЕД
A98: Помидоры свежие порционно | C98: 100 | D98: 1.10 | E98: 0.20 | F98: 3.80 | G98: 24.00 | H98: 0.06 | I98: 25.00 | J98: 0.00 | K98: 0.70 | L98: 14.00 | M98: 26.00 | N98: 20.00 | O98: 0.90 | P98: №71 сб шк 2017
A99: Суп - лапша домашняя на курином бульоне,с мясом птицы | C99: 250/10 | D99: 5.20 | E99: 7.48 | F99: 12.65 | G99: 181.95 | H99: 0.05 | I99: 0.74 | J99: 18.32 | K99: 2.67 | L99: 33.91 | M99: 54.90 | N99: 12.70 | O99: 0.84 | P99: №113,105 шк 2017 сб
A100: Овощи тушеные с говяжьим фаршем | C100: 50/200 | D100: 15.01 | E100: 21.81 | F100: 44.85 | G100: 387.95 | H100: 0.05 | I100: 20.52 | J100: 44.25 | K100: 1.07 | L100: 72.31 | M100: 178.17 | N100: 41.23 | O100: 2.17 | P100: №143, 241 шк 2017 сб
A101: Нектар плодовый (разливной) | C101: 180 | D101: 0.90 | E101: 0.00 | F101: 18.18 | G101: 76.32 | H101: 0.0198 | I101: 3.6 | J101: 0 | K101: 0.18 | L101: 12.6 | M101: 12.6 | N101: 7.2 | O101: 2.52 | P101: №389 сб 2017 шк
A102: Хлеб ржаной | C102: 60 | D102: 3.96 | E102: 0.72 | F102: 23.76 | G102: 118.80 | H102: 0.10 | K102: 0.84 | L102: 17.40 | M102: 90.00 | N102: 28.20 | O102: 2.34 | P102: стр 144 табл. 6 Дели Плюс 2012г,
A103: Хлеб пшеничный | C103: 50 | D103: 3.80 | E103: 0.40 | F103: 24.60 | G103: 117.50 | H103: 0.06 | I103: 0.00 | J103: 0.00 | K103: 0.55 | L103: 10.00 | M103: 32.50 | N103: 7.00 | O103: 0.55 | P103: стр 134 табл. 6 Дели Плюс 2012г,
A104: Итого: | C104: 900 | D104: =SUM(D98:D103) -> 29.97 | E104: =SUM(E98:E103) -> 30.61 | F104: 127.84 | G104: 906.52 | H104: 0.34 | I104: 49.85 | J104: 62.57 | K104: 6.01 | L104: 160.22 | M104: 394.17 | N104: 116.33 | O104: 9.31 | Q104: =G104/2720 -> 33.33% | R104: 40% (38-42)
A105: ВСЕГО: | C105: =C92+C95+$C104 -> 1730 | D105: =D92+D95+$C104 -> 924.38 | E105: 926.24 | F105: 999.61 | G105: 1628.72 | H105: 900.30 | I105: 914.52 | J105: 1063.78 | K105: 901.56 | L105: 1576.96 | M105: 1471.39 | N105: 1006.99 | O105: 904.65 | Q105: =G105/2720 -> 59.88% | R105: 70% (66,5-73,5%)
A107: День 5 - ый
A108: Наименование блюд и | C108: Масса | D108: Пищевые вещества | G108: Энергетическая | H108: В1,мг | I108: С,мг | J108: A,мкг | K108: Е,мг | L108: Ca | M108: P | N108: Mg | O108: Fe | P108: Сборник
A109: продуктов | C109: порции | G109: ценность | P109: рецептур
D110: белки | E110: жиры | F110: угл-ды | G110: Ккал
B111: ЗАВТРАК
A112: Бутерброд с маслом | C112: 30/10 | D112: 2.33 | E112: 8.12 | F112: 15.55 | G112: 144.60 | H112: 0.03 | I112: 0.00 | J112: 40.00 | K112: 0.62 | L112: 8.10 | M112: 22.50 | N112: 3.90 | O112: 0.38 | P112: №1 сб 2017 шк
A113: Омлет натуральный | C113: 200 | D113: 16.13 | E113: 17.40 | F113: 18.90 | G113: 250.13 | H113: 0.14 | I113: 0.34 | J113: 432.76 | K113: 1.00 | L113: 137.45 | M113: 301.03 | N113: 21.52 | O113: 3.52 | P113: №210 сб 2017 шк
A114: Чай с молоком ,с сахаром | C114: 150/40/10 | D114: 1.46 | E114: 1.08 | F114: 11.96 | G114: 63.70 | H114: 0.02 | I114: 0.67 | J114: 8.00 | K114: 0.00 | L114: 63.02 | M114: 48.36 | N114: 12.20 | O114: 1.30 | P114: №378 СБ шк 2017
A115: Фрукты свежие (Яблоки) | C115: 120 | D115: 0.48 | E115: 0.48 | F115: 11.76 | G115: 56.40 | H115: 0.036 | I115: 12 | J115: 0 | K115: 0.24 | L115: 19.2 | M115: 13.2 | N115: 10.8 | O115: 2.64 | P115: №338 сб 2017 шк
A116: Батон высший сорт | C116: 30 | D116: 2.25 | E116: 0.87 | F116: 15.42 | G116: 78.60 | H116: 0.03 | I116: 0.00 | J116: 0.00 | K116: 0.51 | L116: 5.70 | M116: 19.50 | N116: 3.90 | O116: 0.36 | P116: стр 134 табл. 6 Дели Плюс 2012г,
A117: Итого: | C117: 590 | D117: =SUM(D112:D116) -> 22.65 | E117: =SUM(E112:E116) -> 27.95 | F117: 73.59 | G117: 593.43 | H117: 0.26 | I117: 13.01 | J117: 480.76 | K117: 2.37 | L117: 233.46 | M117: 404.59 | N117: 52.32 | O117: 8.20
B118: 2 - ой ЗАВТРАК
A119: Нектар плодовый (разливной) | C119: 180 | D119: 0.90 | E119: 0.00 | F119: 18.18 | G119: 76.32 | H119: 0.0198 | I119: 3.6 | J119: 0 | K119: 0.18 | L119: 12.6 | M119: 12.6 | N119: 7.2 | O119: 2.52 | P119: №389 сб 2017 шк
A120: Итого: | C120: 180 | D120: =D119 -> 0.90 | E120: =E119 -> 0.00 | F120: 18.18 | G120: 76.32 | H120: 0.02 | I120: 3.60 | J120: 0.00 | K120: 0.18 | L120: 12.60 | M120: 12.60 | N120: 7.20 | O120: 2.52
A121: Итого за завтрак: | C121: =C117+C120 -> 770 | D121: =D117+D120 -> 23.55 | E121: 27.95 | F121: 91.77 | G121: 669.75 | H121: 0.28 | I121: 16.61 | J121: 480.76 | K121: 2.55 | L121: 246.06 | M121: 417.19 | N121: 59.52 | O121: 10.72 | Q121: =G121/2720 -> 24.62% | R121: 30% (28,5-31,5)
B122: ОБЕД
A123: Салат из отварной свеклы с маслом растительным | C123: 100 | D123: 1.41 | E123: 6.01 | F123: 8.26 | G123: 92.80 | H123: 0.02 | I123: 6.65 | K123: 2.70 | L123: 35.46 | M123: 40.63 | N123: 20.70 | O123: 1.32 | P123: №52 сб 2017 шк
A124: Суп картофельный с мясными фрикадельками | C124: 250/11 | D124: 4.54 | E124: 8.12 | F124: 16.95 | G124: 135.57 | H124: 0.14 | I124: 12.06 | J124: 2.20 | K124: 1.35 | L124: 32.82 | M124: 100.57 | N124: 34.94 | O124: 1.37 | P124: №97 шк 2017 сб
A125: Биточки рыбные из минтая | C125: 100 | D125: 12.92 | E125: 8.20 | F125: 15.84 | G125: 190.00 | H125: 0.08 | I125: 0.66 | J125: 9.40 | K125: 5.02 | L125: 71.88 | M125: 185.46 | N125: 41.14 | O125: 1.46 | P125: № 234 шк 2017 сб
A126: Макаронные изделия отварные с маслом сливочным | C126: 180/5 | D126: 6.83 | E126: 4.43 | F126: 38.37 | G126: 220.56 | H126: 0.07 | I126: 0.00 | J126: 20.00 | K126: 0.98 | L126: 14.63 | M126: 46.10 | N126: 10.34 | O126: 1.03 | P126: №202 сб шк 2017
A127: Компот из свежих яблок | C127: 200 | D127: 0.16 | E127: 0.16 | F127: 27.88 | G127: 114.60 | H127: 0.01 | I127: 0.90 | J127: 0.00 | K127: 0.08 | L127: 14.18 | M127: 4.40 | N127: 5.14 | O127: 0.95 | P127: №342 сб 2017 шк
A128: Хлеб ржаной | C128: 60 | D128: 3.96 | E128: 0.72 | F128: 23.76 | G128: 118.80 | H128: 0.10 | K128: 0.84 | L128: 17.40 | M128: 90.00 | N128: 28.20 | O128: 2.34 | P128: стр 144 табл. 6 Дели Плюс 2012г,
A129: Хлеб пшеничный | C129: 50 | D129: 3.80 | E129: 0.40 | F129: 24.60 | G129: 117.50 | H129: 0.06 | I129: 0.00 | J129: 0.00 | K129: 0.55 | L129: 10.00 | M129: 32.50 | N129: 7.00 | O129: 0.55 | P129: стр 134 табл. 6 Дели Плюс 2012г,
A130: Итого: | C130: 956 | D130: =SUM(D123:D129) -> 33.62 | E130: =SUM(E123:E129) -> 28.04 | F130: 155.67 | G130: 989.83 | H130: 0.47 | I130: 20.27 | J130: 31.60 | K130: 11.51 | L130: 196.37 | M130: 499.66 | N130: 147.46 | O130: 9.03 | Q130: =G130/2720 -> 36.39% | R130: 40% (38-42)
A131: ВСЕГО: | C131: =C117+C120+C130 -> 1726 | D131: =D117+D120+D130 -> 57.17 | E131: =E117+E120+E130 -> 55.99 | F131: 247.44 | G131: 1659.58 | H131: 0.75 | I131: 36.88 | J131: 512.36 | K131: 14.06 | L131: 442.43 | M131: 916.86 | N131: 206.98 | O131: 19.75 | Q131: =G131/2720 -> 61.01% | R131: 70% (66,5-73,5%)
A133: День 6 - ый
A134: Наименование блюд и | C134: Масса | D134: Пищевые вещества | G134: Энергетическая | H134: В1,мг | I134: С,мг | J134: A,мкг | K134: Е,мг | L134: Ca | M134: P | N134: Mg | O134: Fe | P134: Сборник
A135: продуктов | C135: порции | G135: ценность | P135: рецептур
D136: белки | E136: жиры | F136: угл-ды | G136: Ккал
B137: ЗАВТРАК
A138: Бутерброд с маслом | C138: 30/10 | D138: 2.33 | E138: 8.12 | F138: 15.55 | G138: 144.60 | H138: 0.03 | I138: 0.00 | J138: 40.00 | K138: 0.62 | L138: 8.10 | M138: 22.50 | N138: 3.90 | O138: 0.38 | P138: №1 сб 2017 шк
A139: Каша кукурузная молочная | C139: 180 | D139: 6.90 | E139: 10.19 | F139: 31.91 | G139: 197.30 | H139: 0.08 | I139: 0.86 | J139: 13.32 | K139: 0.26 | L139: 122.46 | M139: 135.55 | N139: 28.45 | O139: 1.49 | P139: №174 сб 2017 шк
A140: Блины с маслом сливочным | C140: 45/5 | D140: 2.43 | E140: 0.95 | F140: 11.60 | G140: 99.14 | H140: 0.05 | I140: 0.00 | J140: 29.14 | K140: 0.73 | L140: 11.01 | M140: 29.90 | N140: 8.59 | O140: 0.50 | P140: ТТК №656 от 28.04.2020
A141: Какао с молоком | C141: 200 | D141: 4.08 | E141: 3.81 | F141: 7.60 | G141: 78.60 | H141: 0.06 | I141: 1.59 | J141: 24.40 | K141: 0.00 | L141: 151.92 | M141: 124.56 | N141: 21.34 | O141: 0.45 | P141: №382 сб шк 2017
A142: Фрукты свежие (Яблоки) | C142: 120 | D142: 0.48 | E142: 0.48 | F142: 11.76 | G142: 56.40 | H142: 0.036 | I142: 12 | J142: 0 | K142: 0.24 | L142: 19.2 | M142: 13.2 | N142: 10.8 | O142: 2.64 | P142: №338 сб 2017 шк
A143: Батон высший сорт | C143: 30 | D143: 2.25 | E143: 0.87 | F143: 15.42 | G143: 78.60 | H143: 0.03 | I143: 0.00 | J143: 0.00 | K143: 0.51 | L143: 5.70 | M143: 19.50 | N143: 3.90 | O143: 0.36 | P143: стр 134 табл. 6 Дели Плюс 2012г,
A144: Итого: | C144: 620 | D144: =SUM(D138:D143) -> 18.46 | E144: =SUM(E138:E143) -> 24.42 | F144: =SUM(F138:F143) -> 93.84 | G144: =SUM(G138:G143) -> 654.64 | H144: 0.29 | I144: 14.45 | J144: 106.86 | K144: 2.36 | L144: 318.39 | M144: 345.21 | N144: 76.98 | O144: 5.82
B145: 2 - ой ЗАВТРАК
A146: Ряженка | C146: 200 | D146: 5.80 | E146: 5.00 | F146: 8.40 | G146: 102.00 | H146: 0.04 | I146: 0.60 | J146: 28.00 | L146: 248.00 | M146: 184.00 | N146: 28.00 | O146: 0.20 | P146: №386 шк 2017 сб
A147: Итого: | C147: 200 | D147: =SUM(D146) -> 5.80 | E147: 5.00 | F147: 8.40 | G147: 102.00 | H147: 0.04 | I147: 0.60 | J147: 28.00 | K147: 0.00 | L147: 248.00 | M147: 184.00 | N147: 28.00 | O147: 0.20
A148: Итого за завтрак: | C148: =C144+C147 -> 820 | D148: =D144+D147 -> 24.26 | E148: 29.42 | F148: 102.24 | G148: 756.64 | H148: 0.33 | I148: 15.05 | J148: 134.86 | K148: 2.36 | L148: 566.39 | M148: 529.21 | N148: 104.98 | O148: 6.02 | Q148: =G148/2720 -> 27.82% | R148: 30% (28,5-31,5)
B149: ОБЕД
A150: Помидоры свежие порционно | C150: 100 | D150: 1.10 | E150: 0.20 | F150: 3.80 | G150: 24.00 | H150: 0.06 | I150: 25.00 | J150: 0.00 | K150: 0.70 | L150: 14.00 | M150: 26.00 | N150: 20.00 | O150: 0.90 | P150: №71 сб шк 2017
A151: Суп из овощей на курином бульоне, со сметаной | C151: 250/10 | D151: 3.85 | E151: 9.49 | F151: 9.51 | G151: 141.45 | H151: 0.08 | I151: 10.42 | J151: 10.00 | K151: 2.36 | L151: 43.65 | M151: 55.38 | N151: 21.65 | O151: 0.80 | P151: №99 шк 2017 сб
A152: Плов из отварных куриных грудок | C152: 250 | D152: 16.52 | E152: 19.80 | F152: 52.80 | G152: 443.33 | H152: 0.18 | I152: 8.17 | J152: 35.00 | K152: 0.68 | L152: 45.12 | M152: 236.67 | N152: 67.42 | O152: 2.33 | P152: №291 шк 2017 сб
A153: Нектар плодовый (разливной) | C153: 180 | D153: 0.90 | E153: 0.00 | F153: 18.18 | G153: 76 | H153: 0.0198 | I153: 3.6 | J153: 0 | K153: 0.18 | L153: 12.6 | M153: 12.6 | N153: 7.2 | O153: 2.52 | P153: №389 сб 2017 шк
A154: Хлеб ржаной | C154: 60 | D154: 3.96 | E154: 0.72 | F154: 23.76 | G154: 118.80 | H154: 0.10 | K154: 0.84 | L154: 17.40 | M154: 90.00 | N154: 28.20 | O154: 2.34 | P154: стр 144 табл. 6 Дели Плюс 2012г,
A155: Хлеб пшеничный | C155: 50 | D155: 3.80 | E155: 0.40 | F155: 24.60 | G155: 117.50 | H155: 0.06 | I155: 0.00 | J155: 0.00 | K155: 0.55 | L155: 10.00 | M155: 32.50 | N155: 7.00 | O155: 0.55 | P155: стр 134 табл. 6 Дели Плюс 2012г,
A156: Итого: | C156: 900 | D156: =SUM(D150:D155) -> 30.13 | E156: =SUM(E150:E155) -> 30.61 | F156: 132.65 | G156: 921.40 | H156: 0.50 | I156: 47.18 | J156: 45.00 | K156: 5.31 | L156: 142.77 | M156: 453.14 | N156: 151.47 | O156: 9.44 | Q156: =G156/2720 -> 33.88% | R156: 40% (38-42)
A157: ВСЕГО: | C157: =C144+C147+C156 -> 1720 | D157: =D144+D147+D156 -> 54.39 | E157: =E144+E147+E156 -> 60.03 | F157: 234.89 | G157: 1678.04 | H157: 0.82 | I157: 62.23 | J157: 179.86 | K157: 7.66 | L157: 709.16 | M157: 982.35 | N157: 256.44 | O157: 15.46 | Q157: =G157/2720 -> 61.69% | R157: 70% (66,5-73,5%)
A159: День 7 - ой
A160: Наименование блюд и | C160: Масса | D160: Пищевые вещества | G160: Энергетическая | H160: В1,мг | I160: С,мг | J160: A,мкг | K160: Е,мг | L160: Ca | M160: P | N160: Mg | O160: Fe | P160: Сборник
A161: продуктов | C161: порции | G161: ценность | P161: рецептур
D162: белки | E162: жиры | F162: угл-ды | G162: Ккал
B163: ЗАВТРАК
A164: Бутерброд с сыром,с маслом | C164: 30/15/10 | D164: 6.28 | E164: 12.11 | F164: 15.55 | G164: 196.10 | H164: 0.04 | I164: 0.11 | J164: 71.50 | K164: 0.68 | L164: 158.10 | M164: 112.50 | N164: 12.15 | O164: 0.49 | P164: №3 сб 2017 шк
A165: Сырники творожные с молоком сгущенным | C165: 180/30 | D165: 8.55 | E165: 5.23 | F165: 28.48 | G165: 208.20 | H165: 0.13 | I165: 0.77 | J165: 102.60 | K165: 5.15 | L165: 380.58 | M165: 475.79 | N165: 51.74 | O165: 1.28 | P165: №219 сб 2017 шк
A166: Чай с сахаром с лимоном | C166: 185/10/5 | D166: 0.13 | E166: 0.02 | F166: 10.20 | G166: 42.00 | H166: 0.12 | I166: 2.00 | J166: 51.70 | K166: 4.02 | L166: 34.97 | M166: 301.50 | N166: 52.71 | O166: 3.56 | P166: №377 СБ 2017,шк
A167: Фрукты свежие (Яблоки) | C167: 120 | D167: 0.48 | E167: 0.48 | F167: 11.76 | G167: 56.40 | H167: 0.036 | I167: 12 | J167: 0 | K167: 0.24 | L167: 19.2 | M167: 13.2 | N167: 10.8 | O167: 2.64 | P167: №338 сб 2017 шк
A168: Батон высший сорт | C168: 30 | D168: 2.25 | E168: 0.87 | F168: 15.42 | G168: 78.60 | H168: 0.03 | I168: 0.00 | J168: 0.00 | K168: 0.51 | L168: 5.70 | M168: 19.50 | N168: 3.90 | O168: 0.36 | P168: стр 134 табл. 6 Дели Плюс 2012г,
A169: Итого: | C169: 615 | D169: =SUM(D164:D168) -> 17.69 | E169: =SUM(E164:E168) -> 18.71 | F169: 81.41 | G169: 581.30 | H169: 0.35 | I169: 14.87 | J169: 225.80 | K169: 10.59 | L169: 598.55 | M169: 922.48 | N169: 131.30 | O169: 8.32
B170: 2 - ой ЗАВТРАК
A171: Молоко кипяченное | C171: 200 | D171: 5.80 | E171: 5.00 | F171: 9.60 | G171: 107.00 | H171: 0.08 | I171: 2.60 | J171: 40.00 | L171: 240.00 | M171: 180.00 | N171: 28.00 | O171: 0.20 | P171: №385 СБ шк 2017
A172: Итого: | C172: =C171 -> 200 | D172: =D171 -> 5.8 | E172: =E171 -> 5 | F172: =F171 -> 9.6 | G172: =G171 -> 107 | H172: =SUM(H171:H171) -> 0.08 | I172: 2.60 | J172: 40.00 | K172: 0.00 | L172: 240.00 | M172: 180.00 | N172: 28.00 | O172: 0.20
A173: Итого за завтрак: | C173: =C169+C172 -> 815 | D173: =D169+D172 -> 23.49 | E173: =E169+E172 -> 23.71 | F173: 91.01 | G173: 688.30 | H173: 0.43 | I173: 17.47 | J173: 265.80 | K173: 10.59 | L173: 838.55 | M173: 1102.48 | N173: 159.30 | O173: 8.52 | Q173: =G173/2720 -> 25.31% | R173: 30% (28,5-31,5)
B174: ОБЕД
A175: Огурцы соленые (доп гарнир) | C175: 50 | D175: 0.40 | E175: 0.05 | F175: 0.85 | G175: 5.00 | H175: 0.01 | I175: 1.75 | K175: 0.05 | L175: 11.50 | M175: 12.00 | N175: 7.00 | O175: 0.30 | P175: №70 СБ шк 2017
A176: Суп гороховый с мясными фрикадельками и гренками | C176: 250/11/10 | D176: 8.93 | E176: 6.72 | F176: 24.22 | G176: 206.64 | H176: 0.26 | I176: 5.88 | J176: 2.20 | K176: 2.70 | L176: 48.67 | M176: 124.65 | N176: 44.32 | O176: 2.54 | P176: №119,105 шк 2017 сб
A177: Котлета из говядины с маслом сливочным | C177: 100/3 | D177: 16.87 | E177: 15.56 | F177: 16.49 | G177: 244.78 | H177: 0.08 | I177: 1.20 | J177: 19.03 | K177: 2.90 | L177: 15.81 | M177: 167.71 | N177: 27.94 | O177: 2.60 | P177: №271 шк 2017 сб
A178: Картофель запеченный дольками | C178: 200 | D178: 5.44 | E178: 11.76 | F178: 42.16 | G178: 304.00 | H178: 0.28 | I178: 29.00 | J178: -40.00 | K178: 9.00 | L178: 28.50 | M178: 141.58 | N178: 53.72 | O178: 1.98 | P178: №314 сб 2017 шк
A179: Компот из сухофруктов | C179: 200 | D179: 0.66 | E179: 0.09 | F179: 22.03 | G179: 92.80 | H179: 0.02 | I179: 0.73 | J179: 0.00 | K179: 0.51 | L179: 32.18 | M179: 23.44 | N179: 17.46 | O179: 0.67 | P179: №349 сб шк 2017
A180: Хлеб ржаной | C180: 60 | D180: 3.96 | E180: 0.72 | F180: 23.76 | G180: 118.80 | H180: 0.10 | K180: 0.84 | L180: 17.40 | M180: 90.00 | N180: 28.20 | O180: 2.34 | P180: стр 144 табл. 6 Дели Плюс 2012г,
A181: Хлеб пшеничный | C181: 50 | D181: 3.80 | E181: 0.40 | F181: 24.60 | G181: 117.50 | H181: 0.06 | I181: 0.00 | J181: 0.00 | K181: 0.55 | L181: 10.00 | M181: 32.50 | N181: 7.00 | O181: 0.55 | P181: стр 134 табл. 6 Дели Плюс 2012г,
A182: Итого: | C182: 934 | D182: =SUM(D175:D181) -> 40.06 | E182: =SUM(E175:E181) -> 35.30 | F182: 154.12 | G182: 1089.52 | H182: 0.81 | I182: 38.56 | J182: -18.77 | K182: 16.55 | L182: 164.05 | M182: 591.88 | N182: 185.63 | O182: 10.97 | Q182: =G182/2720 -> 40.06% | R182: 40% (38-42)
A183: ВСЕГО: | C183: =C169+C172+C182 -> 1749 | D183: =D169+D172+D182 -> 63.55 | E183: =E169+E172+E182 -> 59.01 | F183: 245.13 | G183: 1777.82 | H183: 1.24 | I183: 56.03 | J183: 247.03 | K183: 27.14 | L183: 1002.60 | M183: 1694.36 | N183: 344.94 | O183: 19.50 | Q183: =G183/2720 -> 65.36% | R183: 70% (66,5-73,5%)
A185: День 8 - ой
A186: Наименование блюд и | C186: Масса | D186: Пищевые вещества | G186: Энергетическая | H186: В1,мг | I186: С,мг | J186: A,мкг | K186: Е,мг | L186: Ca | M186: P | N186: Mg | O186: Fe | P186: Сборник
A187: продуктов | C187: порции | G187: ценность | P187: рецептур
D188: белки | E188: жиры | F188: угл-ды | G188: Ккал
B189: ЗАВТРАК
A190: Бутерброд с маслом | C190: 30/10 | D190: 2.33 | E190: 8.12 | F190: 15.55 | G190: 144.60 | H190: 0.03 | I190: 0.00 | J190: 40.00 | K190: 0.62 | L190: 8.10 | M190: 22.50 | N190: 3.90 | O190: 0.38 | P190: №1 сб 2017 шк
A191: Каша пшеничная молочная с маслом сливочным | C191: 200/5 | D191: 9.89 | E191: 9.90 | F191: 30.95 | G191: 266.00 | H191: 0.14 | I191: 0.96 | J191: 34.80 | K191: 0.71 | L191: 145.57 | M191: 219.80 | N191: 44.33 | O191: 2.33 | P191: №173 сб шк 2017
A192: Яйцо отварное | C192: 40 | D192: 5.08 | E192: 4.60 | F192: 0.28 | G192: 62.80 | H192: 0.03 | J192: 100.00 | K192: 0.24 | L192: 22.00 | M192: 76.80 | N192: 4.80 | O192: 1.00 | P192: №209 сб шк 2017
A193: Кофейный напиток с молоком | C193: 200 | D193: 3.17 | E193: 2.68 | F193: 5.97 | G193: 60.60 | H193: 0.04 | I193: 1.30 | J193: 20.00 | K193: 0.00 | L193: 125.48 | M193: 90.00 | N193: 14.00 | O193: 0.10 | P193: №379 шк 2017 сб
A194: Фрукты свежие (Яблоки) | C194: 120 | D194: 0.48 | E194: 0.48 | F194: 11.76 | G194: 56.40 | H194: 0.036 | I194: 12 | J194: 0 | K194: 0.24 | L194: 19.2 | M194: 13.2 | N194: 10.8 | O194: 2.64 | P194: №338 сб 2017 шк
A195: Батон высший сорт | C195: 30 | D195: 2.25 | E195: 0.87 | F195: 15.42 | G195: 78.60 | H195: 0.03 | I195: 0.00 | J195: 0.00 | K195: 0.51 | L195: 5.70 | M195: 19.50 | N195: 3.90 | O195: 0.36 | P195: стр 134 табл. 6 Дели Плюс 2012г,
A196: Итого: | C196: 635 | D196: =SUM(D190:D195) -> 23.20 | E196: =SUM(E190:E195) -> 26.65 | F196: 79.93 | G196: 669.00 | H196: 0.32 | I196: 14.26 | J196: 194.80 | K196: 2.32 | L196: 326.05 | M196: 441.80 | N196: 81.73 | O196: 6.81
B197: 2 - ой ЗАВТРАК
A198: Нектар плодовый (разливной) | C198: 180 | D198: 0.90 | E198: 0.00 | F198: 18.18 | G198: 76 | H198: 0.0198 | I198: 3.6 | J198: 0 | K198: 0.18 | L198: 12.6 | M198: 12.6 | N198: 7.2 | O198: 2.52 | P198: №389 сб 2017 шк
A199: Итого: | C199: =C198 -> 180 | D199: =D198 -> 0.9 | E199: 0 | F199: 18.18 | G199: 76.32 | H199: =SUM(H198:H198) -> 0.02 | I199: 3.60 | J199: 0.00 | K199: 0.18 | L199: 12.60 | M199: 12.60 | N199: 7.20 | O199: 2.52
A200: Итого за завтрак: | C200: =C196+C199 -> 815 | D200: =D196+D199 -> 24.10 | E200: 26.65 | F200: 98.11 | G200: 745.32 | H200: 0.34 | I200: 17.86 | J200: 194.80 | K200: 2.50 | L200: 338.65 | M200: 454.40 | N200: 88.93 | O200: 9.33 | Q200: =G200/2720 -> 27.40% | R200: 30% (28,5-31,5)
B201: ОБЕД
A202: Салат из зеленого горошка к/с | C202: 100 | D202: 2.98 | E202: 5.19 | F202: 6.25 | G202: 83.60 | H202: 0.11 | I202: 11.00 | K202: 2.41 | L202: 21.45 | M202: 59.95 | N202: 20.80 | O202: 0.68 | P202: №10 сб 2016 дошк
A203: Суп крестьянский с пшенной крупой | C203: 250 | D203: 4.48 | E203: 12.92 | F203: 6.09 | G203: 156.25 | H203: 0.04 | I203: 9.88 | J203: 0.00 | K203: 2.30 | L203: 35.88 | M203: 33.58 | N203: 14.18 | O203: 0.58 | P203: №98 сб 2017 шк
A204: Филе куриной грудки тушеное с овощами | C204: 50/200 | D204: 14.98 | E204: 11.46 | F204: 48.88 | G204: 419.38 | H204: 0.26 | I204: 16.24 | J204: 45.90 | K204: 1.80 | L204: 91.28 | M204: 197.92 | N204: 56.78 | O204: 5.14 | P204: ТТК
A205: Компот из свежих фруктов | C205: 200 | D205: 0.16 | E205: 0.12 | F205: 18.10 | G205: 74.60 | H205: 0.01 | I205: 0.90 | J205: 0.00 | K205: 0.16 | L205: 15.08 | M205: 6.40 | N205: 6.34 | O205: 0.96 | P205: №342 сб 2017 шк
A206: Хлеб ржаной | C206: 60 | D206: 3.96 | E206: 0.72 | F206: 23.76 | G206: 118.80 | H206: 0.10 | K206: 0.84 | L206: 17.40 | M206: 90.00 | N206: 28.20 | O206: 2.34 | P206: стр 144 табл. 6 Дели Плюс 2012г,
A207: Хлеб пшеничный | C207: 50 | D207: 3.80 | E207: 0.40 | F207: 24.60 | G207: 117.50 | H207: 0.06 | I207: 0.00 | J207: 0.00 | K207: 0.55 | L207: 10.00 | M207: 32.50 | N207: 7.00 | O207: 0.55 | P207: стр 134 табл. 6 Дели Плюс 2012г,
A208: Итого: | C208: 910 | D208: =SUM(D202:D207) -> 30.36 | E208: =SUM(E202:E207) -> 30.81 | F208: 127.68 | G208: 970.13 | H208: 0.57 | I208: 38.02 | J208: 45.90 | K208: 8.06 | L208: 191.09 | M208: 420.35 | N208: 133.30 | O208: 10.25 | Q208: =G208/2720 -> 35.67% | R208: 40% (38-42)
... 258 more rows
